{"text_format":"1","workbook":"xlsx","n_sheets":18,"sheets":["Açıklamalar","Ana Prosesler Akış Şeması ","Genel Bilgiler","Referans Enerji Tüketimi","2020 Enerji Tüketim Bildirimi","Enerji Üretimi","Enerji Kalitesi","Üretim Girdileri","Üretilen Ürünler","Ana Prosesler","Ana Ekipmanlar - Fırın","Ana Ekipmanlar - Kazanlar","Ana Ekipmanlar - Kojen","Enerji Tüketim Dağılımı","Enerji Yönetimi","İklimden Arındırma","Sayfa1","Prodtr"],"not_rendered":{"charts":0,"images":8,"macros":1,"external_links":1,"defined_names":1,"comments":8,"pivot_tables":0},"unopened":[],"bounds":{"document_bytes":16777216,"sheet_cells":100000,"rows_first":2000,"rows_last":500,"rows_between":2000,"halvings":0,"cell_chars":16384,"cell_head_chars":4096},"cells_cut":0,"cells_raw":0,"read":"whole","date_system":"1900"}

{"sheet":"Açıklamalar","index":0,"n_rows":46,"n_cols":3,"rows_kept":46,"cut":false,"hidden":false,"merged":[[43,1,44,28],[45,1,47,28],[25,1,29,28],[31,1,32,28],[33,1,34,28],[35,1,36,28],[37,1,38,28],[39,1,42,28],[22,1,23,28],[1,1,4,28],[6,1,8,28],[9,2,9,27],[10,2,10,27],[11,2,11,27],[12,2,12,27],[13,2,13,27],[14,2,14,27],[15,2,15,27],[16,2,16,27],[18,1,20,28]]}
[null,"►","AMAÇ :"]
[null,"Bu form, Enerji ve Tabii Kaynaklar Bakanlığı tarafından 5627 Sayılı Enerji Verimliliği Kanunu uyarınca enerji yoğun sektörlerde yürütülen enerji yönetimi, izleme, analiz ve projeksiyon çalışmaları kapsamında NACE Rev.2.0 sektör dağılımına uygun olarak 13. Tekstil Ürünlerinin İmalatı Sektöründe faaliyet gösteren ve yıllık ortalama enerji tüketimi 1.000 TEP (Ton Eşdeğer Petrol) tüketimi olan endüstriyel işletmelerde yıllık kıyaslama raporlarının oluşturulabilmesi için gerekli olan verilerin toplanması amacıyla hazırlanmıştır. "]
[]
[]
[]
[null,"►","HEDEF :"]
[null,"Bu formlar yardımıyla toplanacak veriler yardımıyla spesifik enerji tüketimine yönelik göstergeler oluşturulacak olup bu göstergeler kullanılarak sektöre özel yıllık kıyaslama raporu hazırlanacaktır. Kıyaslama raporları yardımıyla elde edilebilecek kazanımlar aşağıda özetlenmiştir;"]
[]
[]
[null,null,"1) İşletmenizin durumunu sektördeki diğer işletmelerle kıyaslama imkanı sunar"]
[null,null,"2) İşletmenizin geçmiş yıllardaki verileri ile mevcut durumunun kıyaslanmasını sağlar"]
[null,null,"3) Sektördeki en iyi ve/veya ortalama değerlere göre makul hedefler belirlemenize yardımcı olur"]
[null,null,"4) Etkili bir enerji yönetimi sistemi kurmanızda yardımcı olur"]
[null,null,"5) Enerji tüketiminin yoğunlukla hangi proseslerde tüketildiğini görmenize yardımcı olarak odak noktanızı belirler"]
[null,null,"6) Tasarruf potansiyelinizi anlamanıza yardımcı olarak israfı önlemenizi sağlar"]
[null,null,"7) Verimlilik artışı sağlayan teknolojilerin etkileri hakkında fikir sahibi olmanızı sağlar "]
[null,null,"8) Birim üretim başına enerji yatırım maliyetlerinizi optimize etmenize yardımcı olur"]
[null,"►","GİZLİLİK İLKESİ :"]
[null,"5627 Sayılı Enerji Verimliliği Kanunu uyarınca Bakanlığımız, sağladığı bilgilerden gerçek ve tüzel kişilerin ticarî ilişkilerine zarar verecek bilgi ve belgelerin gizliliğine riayet edecektir. Raporda işletmeler özel kodlamalarla tanımlanacak kişisel veriler gizli tutulacaktır. Oluşturulacak raporlar çalışmaya katılan işletmeler haricinde hiçbir gerçek veya tüzel kişilerle paylaşılmayacaktır."]
[]
[]
[null,"►","KULLANICI SORUMLULUĞU :"]
[null,"Endüstriyel işletme yönetimleri, görevlendirdikleri enerji yöneticisi aracılığıyla doldurulan bu formun eksiksiz ve doğru bir şekilde her yıl Mart ayı sonuna kadar Bakanlığımıza bildirilmesinden sorumludur. Gerekli görülmesi halinde Bakanlığın yerinde yapacağı incelemelere imkan sağlanacaktır."]
[]
[null,"►","SORUMLULUK REDDİ :"]
[null,"Bakanlık toplanan verilere dayalı olarak yıllık sektörel raporlar/göstergeler oluşturabilir. Bakanlık söz konusu raporun kapsam ve tasarımını önceden bildirimde bulunmaksızın güncelleme/değiştirebilme yetkisine sahiptir. Raporun basımı, çoğaltılması ve çalışmaya katılan yönetimlerle paylaşma yetkisi tamamen Bakanlığa aittir. Raporun kısmen veya tamamen çoğaltılması, alıntı yapılması, üçüncü taraflarla paylaşılması gibi hususlar Bakanlık'tan alınacak izne tabidir. Bakanlık raporlarda açıklanan herhangi bir bilgi, belge, ürün veya sürecin doğruluğu, tamlığı veya yararlılığına ilişkin, aleni veya zımni olarak, herhangi bir taahhüt sunmaz veya yasal bir yükümlülük veya sorumluluk üstlenmez veya bunların kullanımının özel hakları ihlal etmediğini beyan etmez."]
[]
[]
[]
[]
[null,"►","DİKKAT EDİLECEK BAZI HUSUSLAR :"]
[null,"1) Formu dolduran işletme yönetimleri Bakanlığımıza iletmek için tekstilsektoru@enerji.gov.tr ve portal.bilgi@enerji.gov.tr  e-posta adreslerini kullanabilirler. Bakanlık tarafından talep edilmedikçe formun ayrıca ıslak imzalı olarak posta yoluyla gönderilmesine gerek yoktur."]
[]
[null,"2) Formda kullanıcı tarafından veri girişi yapılacak alanlar kırmızı, seçim yapılması gereken alanlar ise yeşil renkte hazırlanmıştır. Diğer alanların yapısını değiştirecek müdahalelerde bulunmayınız."]
[]
[null,"3) Formda talep edilen bilgiler için bildirim yılının 1 Ocak - 31 Aralık tarih aralığı esas alınacaktır. Örneğin toplu alım yapılarak depolanmış hammadde, yakıt vs bulunan işletmeler belirtilen dönem içerisindeki üretim girdisi miktarını bildireceklerdir."]
[]
[null,"4) Bu formda yer alan referans enerji tüketimi bildirimi alanı ilk defa bildirim yapacaklar ve 1000 TEP altında tüketimi olanlar için doldurulması zorunlu alandır. Daha önce enver portalı üzerinden bildirimde bulunmuş olanların tekrar doldurmalarına gerek yoktur."]
[]
[null,"5) Gerektiği hallerde Bakanlık tarafından bu formla birlikte yayınlanmış olan tep (ton eşdeğer petrol) dönüşüm tablosunu kullanınınız. Ayrıca gerektiği yerlerde satır ekleme yapabilirsiniz. Bu formda TEP dönüşümü otomatik olarak hesaplanmaktadır. Ancak söz konusu tablo yardımı ile litre olarak alınan bir yakıtın ton cinsinden miktarının nasıl hesaplanabileceği, bu formda yer almayan diğer yakıt tanımları,  Net sıcak su, net buhar , net atık ısı ve net elektrik enerjisi tüketimlerinin nasıl hesaplanacağı gibi detaylar açıklanmaktadır. Lütfen detaylı açıklama için kurumumuzla iletişime geçiniz."]
[]
[]
[]
[null,"6) Eğer bildirimde bulunan işletme sınırları içerisinde 100 MWe ve üzerinde kurulu güçle elektrik üretimi yapılabiliyor ise söz konusu üretim birimi için haricen Elektrik Üretim Tesisi Bildirim Formu doldurularak Bakanlığa iletilecektir."]
[]
[null,"7) Formun bazı bölümlerinde talep edilen bilgilerle alakalı ölçüme dayalı veri yoksa tutarlı mühendislik hesaplamalarından faydalanmanız tavsiye edilir. Bu anlamda etüt raporunuz başvurulacak ilk kaynak olacaktır. Etüt raporunu hazırlayan etüt proje uzmanı ile ilgili prosesin opereratöründen destek alınmasında fayda görülmektedir."]

{"sheet":"Ana Prosesler Akış Şeması ","index":1,"n_rows":0,"n_cols":0,"rows_kept":0,"cut":false,"hidden":false,"merged":[]}

{"sheet":"Genel Bilgiler","index":2,"n_rows":40,"n_cols":17,"rows_kept":40,"cut":false,"hidden":false,"merged":[[39,1,39,9],[39,11,39,15],[39,16,39,24],[39,25,39,30],[37,1,37,9],[37,11,37,30],[38,1,38,9],[38,11,38,15],[38,16,38,24],[38,25,38,30],[34,1,34,9],[34,11,34,30],[35,1,35,9],[35,11,35,30],[36,1,36,9],[36,11,36,30],[31,1,31,9],[31,11,31,30],[32,1,32,9],[32,11,32,30],[33,1,33,9],[33,11,33,30],[30,1,30,9],[30,11,30,30],[23,1,24,9],[23,10,24,10],[23,11,24,30],[25,1,25,9],[25,11,25,30],[26,1,26,9],[26,11,26,30],[27,1,27,9],[27,11,27,30],[28,1,28,30],[29,1,29,9],[29,11,29,30],[22,1,22,9],[22,11,22,30],[16,1,16,9],[16,11,16,30],[17,1,17,9],[17,11,17,30],[18,1,18,9],[18,11,18,30],[19,1,19,9],[19,11,19,30],[20,1,20,9],[20,11,20,30],[21,1,21,30],[15,1,15,9],[15,11,15,30],[9,1,9,9],[9,11,9,30],[10,1,10,9],[10,11,10,30],[11,1,11,9],[11,11,11,30],[12,1,12,9],[12,11,12,30],[13,1,13,30],[14,1,14,9],[14,11,14,30],[8,1,8,30],[0,1,1,30],[2,1,2,30],[3,1,3,9],[3,11,3,30],[4,1,4,9],[4,11,4,30],[5,1,5,9],[5,11,5,30],[6,1,7,9],[6,10,7,10],[6,11,7,30]]}
[null,"ENDÜSTRİYEL İŞLETME GENEL BİLGİLERİ"]
[]
[null,"İŞLETME İLETİŞİM BİLGİLERİ"]
[null,"İşletme Adı / Unvanı",null,null,null,null,null,null,null,null,":"]
[null,"İl",null,null,null,null,null,null,null,null,":"]
[null,"İlçe",null,null,null,null,null,null,null,null,":"]
[null,"İletişim Adresi",null,null,null,null,null,null,null,null,":"]
[]
[null,"ENDÜSTRİYEL İŞLETME YÖNETİMİ VEYA SAHİBİNE İLİŞKİN BİLGİLER"]
[null,"Adı, Soyadı",null,null,null,null,null,null,null,null,":"]
[null,"Unvanı",null,null,null,null,null,null,null,null,":"]
[null,"Telefon (İş)",null,null,null,null,null,null,null,null,":"]
[null,"e-posta Adresi",null,null,null,null,null,null,null,null,":"]
[null,"ENERJİ YÖNETİCİSİ BİLGİLERİ\n (Enerji Yöneticisi /Enerji Yönetim Birimi Atanması/Kurulması için ayrıca formata uygun resmi yazı gönderilecek) "]
[null,"Adı, Soyadı",null,null,null,null,null,null,null,null,":"]
[null,"Unvanı",null,null,null,null,null,null,null,null,":"]
[null,"T.C. Kimlik Numarası",null,null,null,null,null,null,null,null,":"]
[null,"Sertifika Numarası",null,null,null,null,null,null,null,null,":"]
[null,"Telefon (İş)",null,null,null,null,null,null,null,null,":"]
[null,"Telefon (Cep)",null,null,null,null,null,null,null,null,":"]
[null,"e-posta Adresi",null,null,null,null,null,null,null,null,":"]
[null,"ENERJİ YÖNETİCİSİNİN BAĞLI OLDUĞU ŞİRKET BİLGİLERİ (VARSA)\n(Bu alan dışarıdan hizmet alımı yapılarak enerji yöneticiliği karşılanıyorsa doldurulacaktır.)"]
[null,"Şirketin Adı/Unvanı",null,null,null,null,null,null,null,null,":"]
[null,"İletişim Adresi",null,null,null,null,null,null,null,null,":"]
[]
[null,"Telefon",null,null,null,null,null,null,null,null,":"]
[null,"Faks",null,null,null,null,null,null,null,null,":"]
[null,"e-posta Adresi",null,null,null,null,null,null,null,null,":"]
[null,"İŞLETME KARAKTERİSTİKLERİ"]
[null,"Ana Faaliyet Alanı",null,null,null,null,null,null,null,null,":","Seçiniz"]
[null,"Sanayi Sicil Belge No ",null,null,null,null,null,null,null,null,":"]
[null,"Vergi Kimlik No",null,null,null,null,null,null,null,null,":"]
[null,"Bağlı Bulunduğu OSB (Varsa)",null,null,null,null,null,null,null,null,":"]
[null,"Kuruluş Yılı",null,null,null,null,null,null,null,null,":"]
[null,"Çalışan Sayısı",null,null,null,null,null,null,null,null,":"]
[null,"Üretimden Gelen \nNet Satış Hasılatı (TL/Yıl)",null,null,null,null,null,null,null,null,":"]
[null,"Çalışma Süresi (Saat/Yıl)",null,null,null,null,null,null,null,null,":"]
[null,"Kapasite Kullanım Oranı (%)",null,null,null,null,null,null,null,null,":"]
[null,"ISO 50001 Belgesi",null,null,null,null,null,null,null,null,":","Seçiniz",null,null,null,null,"Veriliş Tarihi (Varsa)"]
[null,"Etüt Raporu Durumu",null,null,null,null,null,null,null,null,":","Seçiniz",null,null,null,null,"Hazırlanış Tarihi (Varsa)"]

{"sheet":"Referans Enerji Tüketimi","index":3,"n_rows":42,"n_cols":27,"rows_kept":42,"cut":false,"hidden":false,"merged":[[41,14,41,25],[41,26,41,30],[39,1,39,30],[40,1,40,6],[40,7,40,10],[40,11,40,13],[40,14,40,17],[40,18,40,21],[40,22,40,25],[40,26,40,30],[37,1,37,30],[38,1,38,6],[38,7,38,10],[38,11,38,13],[38,14,38,17],[38,18,38,21],[38,22,38,25],[38,26,38,30],[34,26,34,30],[35,1,35,30],[36,1,36,6],[36,7,36,10],[36,11,36,13],[36,14,36,17],[36,18,36,21],[36,22,36,25],[36,26,36,30],[32,22,32,25],[32,26,32,30],[33,1,33,30],[34,1,34,6],[34,7,34,10],[34,11,34,13],[34,14,34,17],[34,18,34,21],[34,22,34,25],[30,22,30,25],[30,26,30,30],[31,1,31,6],[31,7,31,10],[31,11,31,13],[31,14,31,17],[31,18,31,21],[31,22,31,25],[31,26,31,30],[30,0,32,0],[30,1,30,6],[30,7,30,10],[30,11,30,13],[30,14,30,17],[30,18,30,21],[32,1,32,6],[32,7,32,10],[32,11,32,13],[32,14,32,17],[32,18,32,21],[28,26,28,30],[29,1,29,6],[29,7,29,10],[29,11,29,13],[29,14,29,17],[29,18,29,21],[29,22,29,25],[29,26,29,30],[28,1,28,6],[28,7,28,10],[28,11,28,13],[28,14,28,17],[28,18,28,21],[28,22,28,25],[26,26,26,30],[27,1,27,6],[27,7,27,10],[27,11,27,13],[27,14,27,17],[27,18,27,21],[27,22,27,25],[27,26,27,30],[24,26,24,30],[25,1,25,21],[25,22,25,25],[25,26,25,30],[26,1,26,6],[26,7,26,10],[26,11,26,13],[26,14,26,17],[26,18,26,21],[26,22,26,25],[24,1,24,6],[24,7,24,10],[24,11,24,13],[24,14,24,17],[24,18,24,21],[24,22,24,25],[23,7,23,10],[23,11,23,13],[23,14,23,17],[23,18,23,21],[23,22,23,25],[23,26,23,30],[21,26,21,30],[22,0,24,0],[22,1,22,6],[22,7,22,10],[22,11,22,13],[22,14,22,17],[22,18,22,21],[22,22,22,25],[22,26,22,30],[23,1,23,6],[21,1,21,6],[21,7,21,10],[21,11,21,13],[21,14,21,17],[21,18,21,21],[21,22,21,25],[19,26,19,30],[20,1,20,6],[20,7,20,10],[20,11,20,13],[20,14,20,17],[20,18,20,21],[20,22,20,25],[20,26,20,30],[19,1,19,6],[19,7,19,10],[19,11,19,13],[19,14,19,17],[19,18,19,21],[19,22,19,25],[17,26,17,30],[18,1,18,6],[18,7,18,10],[18,11,18,13],[18,14,18,17],[18,18,18,21],[18,22,18,25],[18,26,18,30],[15,26,15,30],[16,1,16,21],[16,22,16,25],[16,26,16,30],[17,1,17,6],[17,7,17,10],[17,11,17,13],[17,14,17,17],[17,18,17,21],[17,22,17,25],[15,1,15,6],[15,7,15,10],[15,11,15,13],[15,14,15,17],[15,18,15,21],[15,22,15,25],[14,7,14,10],[14,11,14,13],[14,14,14,17],[14,18,14,21],[14,22,14,25],[14,26,14,30],[12,26,12,30],[13,0,15,0],[13,1,13,6],[13,7,13,10],[13,11,13,13],[13,14,13,17],[13,18,13,21],[13,22,13,25],[13,26,13,30],[14,1,14,6],[12,1,12,6],[12,7,12,10],[12,11,12,13],[12,14,12,17],[12,18,12,21],[12,22,12,25],[10,26,10,30],[11,1,11,6],[11,7,11,10],[11,11,11,13],[11,14,11,17],[11,18,11,21],[11,22,11,25],[11,26,11,30],[10,1,10,6],[10,7,10,10],[10,11,10,13],[10,14,10,17],[10,18,10,21],[10,22,10,25],[8,26,8,30],[9,1,9,6],[9,7,9,10],[9,11,9,13],[9,14,9,17],[9,18,9,21],[9,22,9,25],[9,26,9,30],[8,1,8,6],[8,7,8,10],[8,11,8,13],[8,14,8,17],[8,18,8,21],[8,22,8,25],[6,1,6,21],[6,22,6,25],[6,26,6,30],[7,1,7,6],[7,7,7,10],[7,11,7,13],[7,14,7,17],[7,18,7,21],[7,22,7,25],[7,26,7,30],[0,2,0,29],[1,2,2,29],[4,1,5,6],[4,7,5,10],[4,11,5,13],[4,14,5,17],[4,18,5,21],[4,22,5,25],[4,26,5,30]]}
[null,"►","Formu doğru bir şekilde doldurabilmek için Lütfen \"TEP Dönüşümü ve Birim Dönüştürücü\" excel dosyasını kullanınız."]
[null,"►","Sıcak Su, Buhar, Atık Isı ve Elektrik üretmek amacıyla yapılan enerji tüketimi katı,sıvı ve gaz yakıtlar içerisinde girilecektir. Mükerrer giriş olmaması amacıyla varlık içerisinde gerçekleşen enerji üretimi bu tüketim formunda ayrıca sorulmamıştır. Enerji üretiminize ilişkin detay bilgiler Enerji Üretimi sekmesinde sorulacaktır."]
[]
[]
[null,"Tüketilen \nYakıt",null,null,null,null,null,"Isıl Değeri\n(kcal / Orj Birim)",null,null,null,"Orijinal Birimi",null,null,"Tüketilen \nMiktar\n(2017)",null,null,null,"Tüketilen \nMiktar\n(2018)",null,null,null,"Tüketilen \nMiktar\n(2019)",null,null,null,"Referans Tüketim\n(TEP/Yıl)"]
[]
[null,"A) KATI YAKITLAR",null,null,null,null,null,null,null,null,null,null,null,null,null,null,null,null,null,null,null,null,"Ara Toplam",null,null,null,{"$f":"SUM(AA8:AE16)","v":0}]
[null,"Taş Kömürü",null,null,null,null,null,6100000,null,null,null,"Ton/Yıl",null,null,null,null,null,null,null,null,null,null,null,null,null,null,{"$f":"IF(AND(O8=0,S8=0,W8=0),0,(AVERAGE(O8:Z8)*H8)/10000000)","v":0}]
[null,"Antrasit",null,null,null,null,null,6900000,null,null,null,"Ton/Yıl",null,null,null,null,null,null,null,null,null,null,null,null,null,null,{"$f":"IF(AND(O9=0,S9=0,W9=0),0,(AVERAGE(O9:Z9)*H9)/10000000)","v":0}]
[null,"Kok Kömürü",null,null,null,null,null,7200000,null,null,null,"Ton/Yıl",null,null,null,null,null,null,null,null,null,null,null,null,null,null,0]
[null,"Linyit (Teshin & Sanayi)",null,null,null,null,null,3000000,null,null,null,"Ton/Yıl",null,null,null,null,null,null,null,null,null,null,null,null,null,null,0]
[null,"Petrokok",null,null,null,null,null,7600000,null,null,null,"Ton/Yıl",null,null,null,null,null,null,null,null,null,null,null,null,null,null,0]
[null,"Pelet",null,null,null,null,null,4100000,null,null,null,"Ton/Yıl",null,null,null,null,null,null,null,null,null,null,null,null,null,null,0]
["DİĞER",null,null,null,null,null,null,null,null,null,null,null,null,null,null,null,null,null,null,null,null,null,null,null,null,null,0]
[null,null,null,null,null,null,null,null,null,null,null,null,null,null,null,null,null,null,null,null,null,null,null,null,null,null,0]
[null,null,null,null,null,null,null,null,null,null,null,null,null,null,null,null,null,null,null,null,null,null,null,null,null,null,0]
[null,"B) SIVI YAKITLAR (Litre - Ton dönüşümü için TEP dönüşümü tablosundaki açıklamaları dikkate alınız.)",null,null,null,null,null,null,null,null,null,null,null,null,null,null,null,null,null,null,null,null,"Ara Toplam",null,null,null,{"$f":"SUM(AA18:AE25)","v":0}]
[null,"Motorin",null,null,null,null,null,10200000,null,null,null,"Ton/Yıl",null,null,null,null,null,null,null,null,null,null,null,null,null,null,{"$f":"IF(AND(O18=0,S18=0,W18=0),0,(AVERAGE(O18:Z18)*H18)/10000000)","v":0}]
[null,"Benzin",null,null,null,null,null,10400000,null,null,null,"Ton/Yıl",null,null,null,null,null,null,null,null,null,null,null,null,null,null,{"$f":"IF(AND(O19=0,S19=0,W19=0),0,(AVERAGE(O19:Z19)*H19)/10000000)","v":0}]
[null,"Fuel-Oil No:5",null,null,null,null,null,10025000,null,null,null,"Ton/Yıl",null,null,null,null,null,null,null,null,null,null,null,null,null,null,0]
[null,"Kerosen",null,null,null,null,null,10500000,null,null,null,"Ton/Yıl",null,null,null,null,null,null,null,null,null,null,null,null,null,null,0]
[null,"Nafta",null,null,null,null,null,10400000,null,null,null,"Ton/Yıl",null,null,null,null,null,null,null,null,null,null,null,null,null,null,0]
["DİĞER",null,null,null,null,null,null,null,null,null,null,null,null,null,null,null,null,null,null,null,null,null,null,null,null,null,0]
[null,null,null,null,null,null,null,null,null,null,null,null,null,null,null,null,null,null,null,null,null,null,null,null,null,null,0]
[null,null,null,null,null,null,null,null,null,null,null,null,null,null,null,null,null,null,null,null,null,null,null,null,null,null,0]
[null,"C) GAZ YAKITLAR(15  ͦ C ve 1 atm basınç altındaki normal metreküp değeri kullanılacaktır)",null,null,null,null,null,null,null,null,null,null,null,null,null,null,null,null,null,null,null,null,"Ara Toplam",null,null,null,{"$f":"SUM(AA27:AE33)","v":0}]
[null,"Doğal Gaz",null,null,null,null,null,8250,null,null,null,"m³/Yıl",null,null,null,null,null,null,null,null,null,null,null,null,null,null,{"$f":"IF(AND(O27=0,S27=0,W27=0),0,(AVERAGE(O27:Z27)*H27)/10000000)","v":0}]
[null,"LPG",null,null,null,null,null,26000,null,null,null,"m³/Yıl",null,null,null,null,null,null,null,null,null,null,null,null,null,null,{"$f":"IF(AND(O28=0,S28=0,W28=0),0,(AVERAGE(O28:Z28)*H28)/10000000)","v":0}]
[null,"Asetilen",null,null,null,null,null,14230,null,null,null,"m³/Yıl",null,null,null,null,null,null,null,null,null,null,null,null,null,null,0]
[null,"Kok Gazı",null,null,null,null,null,4028,null,null,null,"m³/Yıl",null,null,null,null,null,null,null,null,null,null,null,null,null,null,0]
["DİĞER",null,null,null,null,null,null,null,null,null,null,null,null,null,null,null,null,null,null,null,null,null,null,null,null,null,0]
[null,null,null,null,null,null,null,null,null,null,null,null,null,null,null,null,null,null,null,null,null,null,null,null,null,null,0]
[null,null,null,null,null,null,null,null,null,null,null,null,null,null,null,null,null,null,null,null,null,null,null,null,null,null,0]
[null,"D) NET SICAK SU TÜKETİMİ (Satın Alınan  + Yenilenebilir Enerji Kaynaklarından Üretilen - Satılan )"]
[null,"Sıcak Su",null,null,null,null,null,1,null,null,null,"kcal/Yıl",null,null,null,null,null,null,null,null,null,null,null,null,null,null,{"$f":"IF(AND(O35=0,S35=0,W35=0),0,(AVERAGE(O35:Z35)*H35)/10000000)","v":0}]
[null,"E) NET BUHAR TÜKETİMİ (Satın Alınan  + Yenilenebilir Enerji Kaynaklarından Üretilen - Satılan )"]
[null,"Kızgın Buhar ",null,null,null,null,null,1,null,null,null,"kcal/Yıl",null,null,null,null,null,null,null,null,null,null,null,null,null,null,{"$f":"IF(AND(O37=0,S37=0,W37=0),0,(AVERAGE(O37:Z37)*H37)/10000000)","v":0}]
[null,"F) NET ATIK ISI TÜKETİMİ (Satın Alınan  + Yenilenebilir Enerji Kaynaklarından Üretilen - Satılan )"]
[null,"Atık Isı",null,null,null,null,null,1,null,null,null,"kcal/Yıl",null,null,null,null,null,null,null,null,null,null,null,null,null,null,{"$f":"IF(AND(O39=0,S39=0,W39=0),0,(AVERAGE(O39:Z39)*H39)/10000000)","v":0}]
[null,"G) NET ELEKTRİK TÜKETİMİ (Satın Alınan  + Yenilenebilir Enerji Kaynaklarından Üretilen - Satılan )"]
[null,"Elektrik",null,null,null,null,null,860,null,null,null,"kWh/Yıl",null,null,null,null,null,null,null,null,null,null,null,null,null,null,{"$f":"IF(AND(O41=0,S41=0,W41=0),0,(AVERAGE(O41:Z41)*H41)/10000000)","v":0}]
[null,null,null,null,null,null,null,null,null,null,null,null,null,null,"TOPLAM ",null,null,null,null,null,null,null,null,null,null,null,{"$f":"AA41+AA39+AA37+AA35+AA26+AA17+AA7","v":0}]

{"sheet":"2020 Enerji Tüketim Bildirimi","index":4,"n_rows":42,"n_cols":28,"rows_kept":42,"cut":false,"hidden":false,"merged":[[41,15,41,26],[41,27,41,31],[39,1,39,31],[40,1,40,7],[40,8,40,11],[40,12,40,14],[40,15,40,26],[40,27,40,31],[37,1,37,31],[38,1,38,7],[38,8,38,11],[38,12,38,14],[38,15,38,26],[38,27,38,31],[35,1,35,31],[36,1,36,7],[36,8,36,11],[36,12,36,14],[36,15,36,26],[36,27,36,31],[33,1,33,31],[34,1,34,7],[34,8,34,11],[34,12,34,14],[34,15,34,26],[34,27,34,31],[31,27,31,31],[32,1,32,7],[32,8,32,11],[32,12,32,14],[32,15,32,26],[32,27,32,31],[30,0,32,0],[30,1,30,7],[30,8,30,11],[30,12,30,14],[30,15,30,26],[30,27,30,31],[31,1,31,7],[31,8,31,11],[31,12,31,14],[31,15,31,26],[28,1,28,7],[28,8,28,11],[28,12,28,14],[28,15,28,26],[28,27,28,31],[29,1,29,7],[29,8,29,11],[29,12,29,14],[29,15,29,26],[29,27,29,31],[26,1,26,7],[26,8,26,11],[26,12,26,14],[26,15,26,26],[26,27,26,31],[27,1,27,7],[27,8,27,11],[27,12,27,14],[27,15,27,26],[27,27,27,31],[25,1,25,22],[25,23,25,26],[25,27,25,31],[22,27,22,31],[23,1,23,7],[23,8,23,11],[23,12,23,14],[23,15,23,26],[23,27,23,31],[21,1,21,7],[21,8,21,11],[21,12,21,14],[21,15,21,26],[21,27,21,31],[22,0,24,0],[22,1,22,7],[22,8,22,11],[22,12,22,14],[22,15,22,26],[24,1,24,7],[24,8,24,11],[24,12,24,14],[24,15,24,26],[24,27,24,31],[19,1,19,7],[19,8,19,11],[19,12,19,14],[19,15,19,26],[19,27,19,31],[20,1,20,7],[20,8,20,11],[20,12,20,14],[20,15,20,26],[20,27,20,31],[17,1,17,7],[17,8,17,11],[17,12,17,14],[17,15,17,26],[17,27,17,31],[18,1,18,7],[18,8,18,11],[18,12,18,14],[18,15,18,26],[18,27,18,31],[16,1,16,22],[16,23,16,26],[16,27,16,31],[13,27,13,31],[14,1,14,7],[14,8,14,11],[14,12,14,14],[14,15,14,26],[14,27,14,31],[12,1,12,7],[12,8,12,11],[12,12,12,14],[12,15,12,26],[12,27,12,31],[13,0,15,0],[13,1,13,7],[13,8,13,11],[13,12,13,14],[13,15,13,26],[15,1,15,7],[15,8,15,11],[15,12,15,14],[15,15,15,26],[15,27,15,31],[10,1,10,7],[10,8,10,11],[10,12,10,14],[10,15,10,26],[10,27,10,31],[11,1,11,7],[11,8,11,11],[11,12,11,14],[11,15,11,26],[11,27,11,31],[8,1,8,7],[8,8,8,11],[8,12,8,14],[8,15,8,26],[8,27,8,31],[9,1,9,7],[9,8,9,11],[9,12,9,14],[9,15,9,26],[9,27,9,31],[6,1,6,22],[6,23,6,26],[6,27,6,31],[7,1,7,7],[7,8,7,11],[7,12,7,14],[7,15,7,26],[7,27,7,31],[0,2,0,30],[1,2,2,30],[4,1,5,7],[4,8,5,11],[4,12,5,14],[4,15,5,26],[4,27,5,31]]}
[null,"►","Formu doğru bir şekilde doldurabilmek için Lütfen \"TEP Dönüşümü ve Birim Dönüştürücü\" excel dosyasını kullanınız."]
[null,"►","Sıcak Su, Buhar, Atık Isı ve Elektrik üretmek amacıyla yapılan enerji tüketimi katı,sıvı ve gaz yakıtlar içerisinde girilecektir. Mükerrer giriş olmaması amacıyla varlık içerisinde gerçekleşen enerji üretimi bu tüketim formunda ayrıca sorulmamıştır. Enerji üretiminize ilişkin detay bilgiler Enerji Üretimi sekmesinde sorulacaktır."]
[]
[]
[null,"Tüketilen \nYakıt",null,null,null,null,null,null,"Isıl Değeri\n(kcal / Orj Birim)",null,null,null,"Orijinal Birimi",null,null,"TÜKETİLEN ENERJİ MİKTARI\n(2020)",null,null,null,null,null,null,null,null,null,null,null,"Enerji Tüketimi\n(TEP/Yıl)"]
[]
[null,"A) KATI YAKITLAR",null,null,null,null,null,null,null,null,null,null,null,null,null,null,null,null,null,null,null,null,null,"Ara Toplam",null,null,null,{"$f":"SUM(AB8:AF16)","v":0}]
[null,"Taş Kömürü",null,null,null,null,null,null,6100000,null,null,null,"Ton/Yıl",null,null,null,null,null,null,null,null,null,null,null,null,null,null,{"$f":"IF(P8=0,0,(P8*I8)/10000000)","v":0}]
[null,"Antrasit",null,null,null,null,null,null,6900000,null,null,null,"Ton/Yıl",null,null,null,null,null,null,null,null,null,null,null,null,null,null,{"$f":"IF(P9=0,0,(P9*I9)/10000000)","v":0}]
[null,"Kok Kömürü",null,null,null,null,null,null,7200000,null,null,null,"Ton/Yıl",null,null,null,null,null,null,null,null,null,null,null,null,null,null,0]
[null,"Linyit (Teshin & Sanayi)",null,null,null,null,null,null,3000000,null,null,null,"Ton/Yıl",null,null,null,null,null,null,null,null,null,null,null,null,null,null,0]
[null,"Petrokok",null,null,null,null,null,null,7600000,null,null,null,"Ton/Yıl",null,null,null,null,null,null,null,null,null,null,null,null,null,null,0]
[null,"Pelet",null,null,null,null,null,null,4100000,null,null,null,"Ton/Yıl",null,null,null,null,null,null,null,null,null,null,null,null,null,null,0]
["DİĞER",null,null,null,null,null,null,null,null,null,null,null,null,null,null,null,null,null,null,null,null,null,null,null,null,null,null,0]
[null,null,null,null,null,null,null,null,null,null,null,null,null,null,null,null,null,null,null,null,null,null,null,null,null,null,null,0]
[null,null,null,null,null,null,null,null,null,null,null,null,null,null,null,null,null,null,null,null,null,null,null,null,null,null,null,0]
[null,"B) SIVI YAKITLAR (Litre - Ton dönüşümü için TEP dönüşümü tablosundaki açıklamaları dikkate alınız.)",null,null,null,null,null,null,null,null,null,null,null,null,null,null,null,null,null,null,null,null,null,"Ara Toplam",null,null,null,{"$f":"SUM(AB18:AF25)","v":0}]
[null,"Motorin",null,null,null,null,null,null,10200000,null,null,null,"Ton/Yıl",null,null,null,null,null,null,null,null,null,null,null,null,null,null,{"$f":"IF(P18=0,0,(P18*I18)/10000000)","v":0}]
[null,"Benzin",null,null,null,null,null,null,10400000,null,null,null,"Ton/Yıl",null,null,null,null,null,null,null,null,null,null,null,null,null,null,0]
[null,"Fuel-Oil No:5",null,null,null,null,null,null,10025000,null,null,null,"Ton/Yıl",null,null,null,null,null,null,null,null,null,null,null,null,null,null,0]
[null,"Kerosen",null,null,null,null,null,null,10500000,null,null,null,"Ton/Yıl",null,null,null,null,null,null,null,null,null,null,null,null,null,null,0]
[null,"Nafta",null,null,null,null,null,null,10400000,null,null,null,"Ton/Yıl",null,null,null,null,null,null,null,null,null,null,null,null,null,null,0]
["DİĞER",null,null,null,null,null,null,null,null,null,null,null,null,null,null,null,null,null,null,null,null,null,null,null,null,null,null,0]
[null,null,null,null,null,null,null,null,null,null,null,null,null,null,null,null,null,null,null,null,null,null,null,null,null,null,null,0]
[null,null,null,null,null,null,null,null,null,null,null,null,null,null,null,null,null,null,null,null,null,null,null,null,null,null,null,0]
[null,"C) GAZ YAKITLAR(15  ͦ C ve 1 atm basınç altındaki normal metreküp değeri kullanılacaktır)",null,null,null,null,null,null,null,null,null,null,null,null,null,null,null,null,null,null,null,null,null,"Ara Toplam",null,null,null,{"$f":"SUM(AB27:AF33)","v":0}]
[null,"Doğal Gaz",null,null,null,null,null,null,8250,null,null,null,"m³/Yıl",null,null,null,null,null,null,null,null,null,null,null,null,null,null,{"$f":"IF(P27=0,0,(P27*I27)/10000000)","v":0}]
[null,"LPG",null,null,null,null,null,null,26000,null,null,null,"m³/Yıl",null,null,null,null,null,null,null,null,null,null,null,null,null,null,0]
[null,"Asetilen",null,null,null,null,null,null,14230,null,null,null,"m³/Yıl",null,null,null,null,null,null,null,null,null,null,null,null,null,null,0]
[null,"Kok Gazı",null,null,null,null,null,null,4028,null,null,null,"m³/Yıl",null,null,null,null,null,null,null,null,null,null,null,null,null,null,0]
["DİĞER",null,null,null,null,null,null,null,null,null,null,null,null,null,null,null,null,null,null,null,null,null,null,null,null,null,null,0]
[null,null,null,null,null,null,null,null,null,null,null,null,null,null,null,null,null,null,null,null,null,null,null,null,null,null,null,0]
[null,null,null,null,null,null,null,null,null,null,null,null,null,null,null,null,null,null,null,null,null,null,null,null,null,null,null,0]
[null,"D) NET SICAK SU TÜKETİMİ (Satın Alınan  + Yenilenebilir Enerji Kaynaklarından Üretilen - Satılan )"]
[null,"Sıcak Su",null,null,null,null,null,null,1,null,null,null,"kcal/Yıl",null,null,null,null,null,null,null,null,null,null,null,null,null,null,{"$f":"IF(P35=0,0,(P35*I35)/10000000)","v":0}]
[null,"E) NET BUHAR TÜKETİMİ (Satın Alınan  + Yenilenebilir Enerji Kaynaklarından Üretilen - Satılan )"]
[null,"Kızgın Buhar",null,null,null,null,null,null,1,null,null,null,"kcal/Yıl",null,null,null,null,null,null,null,null,null,null,null,null,null,null,{"$f":"IF(P37=0,0,(P37*I37)/10000000)","v":0}]
[null,"F) NET ATIK ISI TÜKETİMİ (Satın Alınan  + Yenilenebilir Enerji Kaynaklarından Üretilen - Satılan )"]
[null,"Atık Isı",null,null,null,null,null,null,1,null,null,null,"kcal/Yıl",null,null,null,null,null,null,null,null,null,null,null,null,null,null,{"$f":"IF(P39=0,0,(P39*I39)/10000000)","v":0}]
[null,"G) NET ELEKTRİK TÜKETİMİ (Satın Alınan  + Yenilenebilir Enerji Kaynaklarından Üretilen - Satılan )"]
[null,"Elektrik",null,null,null,null,null,null,860,null,null,null,"kWh/Yıl",null,null,null,null,null,null,null,null,null,null,null,null,null,null,{"$f":"IF(P41=0,0,(P41*I41)/10000000)","v":0}]
[null,null,null,null,null,null,null,null,null,null,null,null,null,null,null,"TOPLAM ",null,null,null,null,null,null,null,null,null,null,null,{"$f":"AB41+AB39+AB37+AB35+AB26+AB17+AB7","v":0}]

{"sheet":"Enerji Üretimi","index":5,"n_rows":26,"n_cols":27,"rows_kept":26,"cut":false,"hidden":false,"merged":[[25,15,25,25],[25,26,25,30],[22,1,22,20],[22,21,22,25],[22,26,22,30],[23,1,23,7],[23,8,23,11],[23,12,23,14],[23,15,23,25],[23,26,23,30],[24,1,24,7],[24,8,24,11],[24,12,24,14],[24,15,24,25],[24,26,24,30],[20,1,20,7],[20,8,20,11],[20,12,20,14],[20,15,20,25],[20,26,20,30],[21,1,21,7],[21,8,21,11],[21,12,21,14],[21,15,21,25],[21,26,21,30],[18,1,18,7],[18,8,18,11],[18,12,18,14],[18,15,18,25],[18,26,18,30],[19,1,19,7],[19,8,19,11],[19,12,19,14],[19,15,19,25],[19,26,19,30],[16,1,16,7],[16,8,16,11],[16,12,16,14],[16,15,16,25],[16,26,16,30],[17,1,17,7],[17,8,17,11],[17,12,17,14],[17,15,17,25],[17,26,17,30],[14,1,14,20],[14,21,14,25],[14,26,14,30],[15,1,15,7],[15,8,15,11],[15,12,15,14],[15,15,15,25],[15,26,15,30],[12,1,12,7],[12,8,12,11],[12,12,12,14],[12,15,12,25],[12,26,12,30],[13,1,13,7],[13,8,13,11],[13,12,13,14],[13,15,13,25],[13,26,13,30],[10,1,10,7],[10,8,10,11],[10,12,10,14],[10,15,10,25],[10,26,10,30],[11,1,11,7],[11,8,11,11],[11,12,11,14],[11,15,11,25],[11,26,11,30],[8,1,8,20],[8,21,8,25],[8,26,8,30],[9,1,9,7],[9,8,9,11],[9,12,9,14],[9,15,9,25],[9,26,9,30],[1,2,2,29],[3,2,4,29],[6,1,7,7],[6,8,7,11],[6,12,7,14],[6,15,7,25],[6,26,7,30]]}
[]
[null,"►","Bildirim yılı içerisinde satın alınan yakıtlarla üretilen enerji miktarlarını belirtiniz. Burada yerinden üretim teknolojileri kullanılarak fabrika sahası içerisinde üretilen enerji miktarı belirtilecektir. Üretilen Elektrik miktarı ve Üretilen Isıl Enerji Miktarı ve varsa üretilen enerjinin satılan miktarı girilecektir."]
[]
[null,"►","Bu form tekstil ürünlerinin imalatı ile sınırlandırıldığı için fabrika sınırları içerisinde bulunan diğer tesisler değerlendirmeye alınmayacaktır. Örneğin fabrika sınırları içerisindeki binaların kullanımı için buhar veriliyorsa bu satılan buharmış gibi değerlendirilecektir."]
[]
[]
[null,"Üretilen Enerji\nTipi",null,null,null,null,null,null,"Isıl Değeri\n(kcal / Orj Birim)",null,null,null,"Orijinal Birimi",null,null,"Üretilen Enerji Miktarı\n(2020 Yılı)",null,null,null,null,null,null,null,null,null,null,"Enerji Üretimi\n(TEP/Yıl)"]
[]
[null,"A) ELEKTRİK ÜRETİMİ",null,null,null,null,null,null,null,null,null,null,null,null,null,null,null,null,null,null,null,"Toplam :",null,null,null,null,{"$f":"AA10+AA11+AA12+AA13-AA14","v":0}]
[null,"Fosil Yakıtların Yakılması ile Üretilen Elektrik",null,null,null,null,null,null,860,null,null,null,"kWh/Yıl",null,null,null,null,null,null,null,null,null,null,null,null,null,{"$f":"IF(P10=0,0,(P10*I10)/10000000)","v":0}]
[null,"Yenilenebilir Enerji  ile Üretilen Elektrik",null,null,null,null,null,null,860,null,null,null,"kWh/Yıl",null,null,null,null,null,null,null,null,null,null,null,null,null,{"$f":"IF(P11=0,0,(P11*I11)/10000000)","v":0}]
[null,"Satın Alınan Buhar ile Üretilen Elektrik",null,null,null,null,null,null,860,null,null,null,"kWh/Yıl",null,null,null,null,null,null,null,null,null,null,null,null,null,{"$f":"IF(P12=0,0,(P12*I12)/10000000)","v":0}]
[null,"Atık Isı ile Üretilen Elektrik",null,null,null,null,null,null,860,null,null,null,"kWh/Yıl",null,null,null,null,null,null,null,null,null,null,null,null,null,{"$f":"IF(P13=0,0,(P13*I13)/10000000)","v":0}]
[null,"Satılan Elektrik Enerjisi",null,null,null,null,null,null,860,null,null,null,"kWh/Yıl",null,null,null,null,null,null,null,null,null,null,null,null,null,{"$f":"IF(P14=0,0,(P14*I14)/10000000)","v":0}]
[null,"B) ISIL ENERJİ ÜRETİMİ",null,null,null,null,null,null,null,null,null,null,null,null,null,null,null,null,null,null,null,"Toplam :",null,null,null,null,{"$f":"AA16+AA17+AA18+AA19+AA20+AA21-AA22","v":0}]
[null,"Fosil Yakıtların Yakılması ile Üretilen Sıcak Su",null,null,null,null,null,null,1,null,null,null,"kcal/Yıl",null,null,null,null,null,null,null,null,null,null,null,null,null,{"$f":"IF(P16=0,0,(P16*I16)/10000000)","v":0}]
[null,"Fosil Yakıtların Yakılması ile Üretilen Buhar",null,null,null,null,null,null,1,null,null,null,"kcal/Yıl",null,null,null,null,null,null,null,null,null,null,null,null,null,0]
[null,"Yenilenebilir Enerji ile Üretilen Sıcak Su",null,null,null,null,null,null,1,null,null,null,"kcal/Yıl",null,null,null,null,null,null,null,null,null,null,null,null,null,0]
[null,"Yenilenebilir Enerji ile Üretilen Buhar",null,null,null,null,null,null,1,null,null,null,"kcal/Yıl",null,null,null,null,null,null,null,null,null,null,null,null,null,0]
[null,"Atık Isı ile Üretilen Sıcak Su",null,null,null,null,null,null,1,null,null,null,"kcal/Yıl",null,null,null,null,null,null,null,null,null,null,null,null,null,0]
[null,"Atık Isı ile Üretilen Buhar",null,null,null,null,null,null,1,null,null,null,"kcal/Yıl",null,null,null,null,null,null,null,null,null,null,null,null,null,0]
[null,"Satılan Isıl Enerji",null,null,null,null,null,null,1,null,null,null,"kcal/Yıl",null,null,null,null,null,null,null,null,null,null,null,null,null,0]
[null,"C) DİĞER ENERJİ ÜRETİMİ",null,null,null,null,null,null,null,null,null,null,null,null,null,null,null,null,null,null,null,"Toplam :",null,null,null,null,{"$f":"AA24","v":0}]
[null,"Basınçlı Hava Üretimi",null,null,null,null,null,null,860,null,null,null,"kWh/Yıl",null,null,null,null,null,null,null,null,null,null,null,null,null,{"$f":"IF(P24=0,0,(P24*I24)/10000000)","v":0}]
[null,"Üretilen Soğutma Suyu",null,null,null,null,null,null,1,null,null,null,"kcal/Yıl",null,null,null,null,null,null,null,null,null,null,null,null,null,{"$f":"IF(P25=0,0,(P25*I25)/10000000)","v":0}]
[null,null,null,null,null,null,null,null,null,null,null,null,null,null,null,"TOPLAM :",null,null,null,null,null,null,null,null,null,null,{"$f":"AA23+AA15+AA9","v":0}]

{"sheet":"Enerji Kalitesi","index":6,"n_rows":14,"n_cols":38,"rows_kept":14,"cut":false,"hidden":false,"merged":[[13,2,14,13],[13,14,14,25],[13,26,14,36],[13,37,14,46],[9,2,10,13],[9,14,10,25],[9,26,10,36],[9,37,10,46],[11,2,12,13],[11,14,12,25],[11,26,12,36],[11,37,12,46],[7,2,8,13],[7,14,8,25],[7,26,8,36],[7,37,8,46],[4,2,4,46],[5,2,6,13],[5,14,6,25],[5,26,6,36],[5,37,6,46]]}
[]
[null,"►","Bazı işletmelerde enerji tedariğinde kesintiler ve dalgalanmalar olabilmektedir. Söz konusu durum üretim kaybına da neden olabilmektedir."]
[null,null,"Sürdürülebilir ve etkin bir enerji yönetimi için enerji kalitesinin azalmasına neden olan sebepler araştırılarak gerekli iyileştirme yatırımları yapılması gerekir."]
[]
[null,null,"ENERJİ KALİTESİ"]
[null,null,null,null,null,null,null,null,null,null,null,null,null,null,"Sayısı\n(Adet/Yıl)",null,null,null,null,null,null,null,null,null,null,null,"Süresi\n(Saat/Yıl)",null,null,null,null,null,null,null,null,null,null,"Üretim Kaybı\n(Ton/Yıl)"]
[]
[null,null,"Elektrik Kesintisi"]
[]
[null,null,"Elektrik Gerilimindeki Dalgalanmalar"]
[]
[null,null,"Satın Alınan Yakıtta Kesinti (Varsa)"]
[]
[null,null,"Satın Alınan Yakıtın Alt Isıl Değerindeki Dalgalanmalar (Varsa)"]

{"sheet":"Üretim Girdileri","index":7,"n_rows":43,"n_cols":17,"rows_kept":43,"cut":false,"hidden":false,"merged":[[40,1,40,31],[41,1,41,11],[41,12,41,15],[41,17,41,31],[42,1,42,11],[42,12,42,15],[42,17,42,31],[13,1,13,11],[13,12,13,15],[13,17,13,31],[18,1,18,11],[18,12,18,15],[18,17,18,31],[25,12,25,15],[25,17,25,31],[21,1,21,11],[21,12,21,15],[21,17,21,31],[35,17,35,31],[36,1,36,11],[36,12,36,15],[36,17,36,31],[32,1,32,11],[32,12,32,15],[11,1,11,11],[11,12,11,15],[11,17,11,31],[12,1,12,11],[12,12,12,15],[12,17,12,31],[16,1,16,11],[16,12,16,15],[16,17,16,31],[7,17,7,31],[8,1,8,11],[8,12,8,15],[8,17,8,31],[10,1,10,11],[10,12,10,15],[10,17,10,31],[39,1,39,11],[39,12,39,15],[39,17,39,31],[37,1,37,11],[37,12,37,15],[37,17,37,31],[38,1,38,11],[38,12,38,15],[38,17,38,31],[33,1,33,11],[33,12,33,15],[33,17,33,31],[34,1,34,11],[34,12,34,15],[34,17,34,31],[35,1,35,11],[35,12,35,15],[32,17,32,31],[28,1,28,11],[28,12,28,15],[28,17,28,31],[29,1,29,11],[29,12,29,15],[29,17,29,31],[31,1,31,31],[30,1,30,11],[30,12,30,15],[30,17,30,31],[6,1,6,11],[6,12,6,15],[6,17,6,31],[7,1,7,11],[7,12,7,15],[26,1,26,11],[26,12,26,15],[26,17,26,31],[27,1,27,11],[27,12,27,15],[27,17,27,31],[22,1,22,11],[22,12,22,15],[22,17,22,31],[23,1,23,11],[23,12,23,15],[23,17,23,31],[19,1,19,11],[19,12,19,15],[19,17,19,31],[24,1,24,11],[24,12,24,15],[24,17,24,31],[25,1,25,11],[0,2,1,31],[20,1,20,31],[15,1,15,11],[15,12,15,15],[15,17,15,31],[17,1,17,11],[17,12,17,15],[17,17,17,31],[14,1,14,11],[14,12,14,15],[14,17,14,31],[2,1,2,31],[3,17,3,31],[3,12,3,15],[3,1,3,11],[9,1,9,11],[9,12,9,15],[9,17,9,31],[4,1,4,11],[4,12,4,15],[4,17,4,31],[5,1,5,11],[5,12,5,15],[5,17,5,31]]}
[null,"►","Referans Enerji Tüketimi 1000 TEP ve üzeri olan Tekstil Ürünleri İmalatı sektöründe faaliyet gösteren işletmeler tarafından dolduracak olan bu bölümde Hammadde, Boyar Maddeler, Ana Kimyevi Maddelere ilişkin bildirim yılında tüketilen miktarlar sorulmaktadır."]
[]
[null,"HAMMADDE"]
[null,"Pamuk",null,null,null,null,null,null,null,null,null,null,"Ton/Yıl",null,null,null,":"]
[null,"Keten",null,null,null,null,null,null,null,null,null,null,"Ton/Yıl",null,null,null,":"]
[null,"Kendir",null,null,null,null,null,null,null,null,null,null,"Ton/Yıl",null,null,null,":"]
[null,"Jüt",null,null,null,null,null,null,null,null,null,null,"Ton/Yıl",null,null,null,":"]
[null,"Rami",null,null,null,null,null,null,null,null,null,null,"Ton/Yıl",null,null,null,":"]
[null,"Sisal",null,null,null,null,null,null,null,null,null,null,"Ton/Yıl",null,null,null,":"]
[null,"Yün ",null,null,null,null,null,null,null,null,null,null,"Ton/Yıl",null,null,null,":"]
[null,"İpek",null,null,null,null,null,null,null,null,null,null,"Ton/Yıl",null,null,null,":"]
[null,"Tiftik",null,null,null,null,null,null,null,null,null,null,"Ton/Yıl",null,null,null,":"]
[null,"Keşmir",null,null,null,null,null,null,null,null,null,null,"Ton/Yıl",null,null,null,":"]
[null,"Alpaka",null,null,null,null,null,null,null,null,null,null,"Ton/Yıl",null,null,null,":"]
[null,"Sentetik Elyaf",null,null,null,null,null,null,null,null,null,null,"Ton/Yıl",null,null,null,":"]
[null,"Lcyra",null,null,null,null,null,null,null,null,null,null,"Ton/Yıl",null,null,null,":"]
[null,"Polyester",null,null,null,null,null,null,null,null,null,null,"Ton/Yıl",null,null,null,":"]
[null,"Poliamid",null,null,null,null,null,null,null,null,null,null,"Ton/Yıl",null,null,null,":"]
[null,"Akrilik",null,null,null,null,null,null,null,null,null,null,"Ton/Yıl",null,null,null,":"]
[null,"Diğer",null,null,null,null,null,null,null,null,null,null,"Ton/Yıl",null,null,null,":"]
[null,"BOYAR MADDELER"]
[null,"Reaktif",null,null,null,null,null,null,null,null,null,null,"Ton/Yıl",null,null,null,":"]
[null,"Kükürt",null,null,null,null,null,null,null,null,null,null,"Ton/Yıl",null,null,null,":"]
[null,"Dispers",null,null,null,null,null,null,null,null,null,null,"Ton/Yıl",null,null,null,":"]
[null,"Bazik",null,null,null,null,null,null,null,null,null,null,"Ton/Yıl",null,null,null,":"]
[null,"Küp (vat)",null,null,null,null,null,null,null,null,null,null,"Ton/Yıl",null,null,null,":"]
[null,"Asit",null,null,null,null,null,null,null,null,null,null,"Ton/Yıl",null,null,null,":"]
[null,"Direkt",null,null,null,null,null,null,null,null,null,null,"Ton/Yıl",null,null,null,":"]
[null,"Pigment",null,null,null,null,null,null,null,null,null,null,"Ton/Yıl",null,null,null,":"]
[null,"İndigo",null,null,null,null,null,null,null,null,null,null,"Ton/Yıl",null,null,null,":"]
[null,"Diğer",null,null,null,null,null,null,null,null,null,null,"Ton/Yıl",null,null,null,":"]
[null,"ANA KİMYEVİ MADDELER"]
[null,"Kostik",null,null,null,null,null,null,null,null,null,null,"Ton/Yıl",null,null,null,":"]
[null,"Peroksit",null,null,null,null,null,null,null,null,null,null,"Ton/Yıl",null,null,null,":"]
[null,"Deterjan",null,null,null,null,null,null,null,null,null,null,"Ton/Yıl",null,null,null,":"]
[null,"Islatıcılar",null,null,null,null,null,null,null,null,null,null,"Ton/Yıl",null,null,null,":"]
[null,"Soda",null,null,null,null,null,null,null,null,null,null,"Ton/Yıl",null,null,null,":"]
[null,"Slikat",null,null,null,null,null,null,null,null,null,null,"Ton/Yıl",null,null,null,":"]
[null,"Haşıl",null,null,null,null,null,null,null,null,null,null,"Ton/Yıl",null,null,null,":"]
[null,"Diğer",null,null,null,null,null,null,null,null,null,null,"Ton/Yıl",null,null,null,":"]
[null,"SU TÜKETİMİ"]
[null,"Yumuşak Su",null,null,null,null,null,null,null,null,null,null,"Ton/Yıl",null,null,null,":"]
[null,"Sert Su",null,null,null,null,null,null,null,null,null,null,"Ton/Yıl",null,null,null,":"]

{"sheet":"Üretilen Ürünler","index":8,"n_rows":33,"n_cols":17,"rows_kept":33,"cut":false,"hidden":false,"merged":[[33,1,33,30],[32,1,32,11],[32,12,32,15],[32,17,32,30],[4,1,4,11],[4,12,4,15],[4,17,4,30],[10,1,10,11],[10,12,10,15],[10,17,10,30],[14,1,14,11],[14,12,14,15],[14,17,14,30],[18,1,18,11],[18,12,18,15],[18,17,18,30],[29,1,29,30],[30,1,30,30],[31,1,31,11],[31,12,31,15],[31,17,31,30],[27,1,27,11],[27,12,27,15],[27,17,27,30],[28,1,28,11],[28,12,28,15],[28,17,28,30],[24,1,24,11],[24,12,24,15],[24,17,24,30],[25,1,25,30],[26,1,26,30],[21,1,21,30],[22,1,22,30],[23,1,23,11],[23,12,23,15],[23,17,23,30],[13,1,13,30],[17,1,17,30],[20,1,20,11],[20,12,20,15],[20,17,20,30],[16,1,16,11],[16,12,16,15],[16,17,16,30],[19,1,19,11],[19,12,19,15],[19,17,19,30],[11,12,11,15],[11,17,11,30],[12,1,12,11],[12,12,12,15],[12,17,12,30],[1,2,1,30],[8,1,8,30],[9,1,9,30],[15,1,15,11],[15,12,15,15],[15,17,15,30],[2,1,2,30],[5,1,5,11],[5,12,5,15],[5,17,5,30],[7,1,7,30],[6,1,6,11],[6,12,6,15],[6,17,6,30],[3,1,3,30],[11,1,11,11]]}
[]
[null,"►","Bu bölüm ve sonrası Referans Enerji Tüketimi 1000 TEP ve üzeri olan Tekstil Ürünleri İmalatı sektöründe faaliyet gösteren işletmeler tarafından dolduracaktır. "]
[null,"TEKSTİL ÜRÜN GRUPLARI\n(Birden Fazla Ürün Seçimi Yapabilirsiniz)"]
[null,"A) İPLİK  (Elyaf                  İplik Aşaması)"]
[null,"Satın Alınan Miktar",null,null,null,null,null,null,null,null,null,null,"Seçiniz",null,null,null,":"]
[null,"Fiili Üretim Miktarı",null,null,null,null,null,null,null,null,null,null,"Seçiniz",null,null,null,":"]
[null,"Satılan Miktar",null,null,null,null,null,null,null,null,null,null,"Seçiniz",null,null,null,":"]
[]
[null,"B) KUMAŞ (İplik                  Kumaş Aşaması)"]
[null,"DOKUMA KUMAŞ"]
[null,"Satın Alınan Miktar",null,null,null,null,null,null,null,null,null,null,"Seçiniz",null,null,null,":"]
[null,"Fiili Üretim Miktarı",null,null,null,null,null,null,null,null,null,null,"Seçiniz",null,null,null,":"]
[null,"Satılan Miktar",null,null,null,null,null,null,null,null,null,null,"Seçiniz",null,null,null,":"]
[null,"ÖRME KUMAŞ"]
[null,"Satın Alınan Miktar",null,null,null,null,null,null,null,null,null,null,"Seçiniz",null,null,null,":"]
[null,"Fiili Üretim Miktarı",null,null,null,null,null,null,null,null,null,null,"Seçiniz",null,null,null,":"]
[null,"Satılan Miktar",null,null,null,null,null,null,null,null,null,null,"Seçiniz",null,null,null,":"]
[null,"DOKUSUZ KUMAŞ (Tafting, Yapıştırmalı, nonwoven vs.)"]
[null,"Satın Alınan Miktar",null,null,null,null,null,null,null,null,null,null,"Seçiniz",null,null,null,":"]
[null,"Fiili Üretim Miktarı",null,null,null,null,null,null,null,null,null,null,"Seçiniz",null,null,null,":"]
[null,"Satılan Miktar",null,null,null,null,null,null,null,null,null,null,"Seçiniz",null,null,null,":"]
[null,"C) SATILABİLİR NİHAİ ÜRÜN (İplik / Kumaş                  Nihai Ürün Aşaması)"]
[null,"EV TEKSTİL ÜRÜNLERİ"]
[null,"Fiili Üretim Miktarı",null,null,null,null,null,null,null,null,null,null,"Seçiniz",null,null,null,":"]
[null,"Satılan Miktar",null,null,null,null,null,null,null,null,null,null,"Seçiniz",null,null,null,":"]
[]
[null,"GİYİM VE AKSESUAR ÜRÜNLERİ"]
[null,"Fiili Üretim Miktarı",null,null,null,null,null,null,null,null,null,null,"Seçiniz",null,null,null,":"]
[null,"Satılan Miktar",null,null,null,null,null,null,null,null,null,null,"Seçiniz",null,null,null,":"]
[]
[null,"DİĞER (TEKNİK) TEKSTİL ÜRÜNLERİ"]
[null,"Fiili Üretim Miktarı",null,null,null,null,null,null,null,null,null,null,"Seçiniz",null,null,null,":"]
[null,"Satılan Miktar",null,null,null,null,null,null,null,null,null,null,"Seçiniz",null,null,null,":"]

{"sheet":"Ana Prosesler","index":9,"n_rows":75,"n_cols":97,"rows_kept":75,"cut":false,"hidden":false,"merged":[[72,10,73,21],[72,22,73,27],[72,28,73,29],[72,30,73,38],[72,39,73,46],[74,77,75,87],[74,88,75,95],[74,96,75,105],[72,96,73,105],[74,10,75,21],[74,22,75,27],[74,28,75,29],[74,30,75,38],[74,39,75,46],[74,47,75,54],[74,55,75,62],[74,63,75,69],[74,70,75,76],[72,47,73,54],[72,55,73,62],[72,63,73,69],[72,70,73,76],[72,77,73,87],[72,88,73,95],[68,77,69,87],[68,88,69,95],[68,96,69,105],[70,10,71,21],[70,22,71,27],[70,28,71,29],[70,30,71,38],[70,39,71,46],[70,47,71,54],[70,55,71,62],[70,63,71,69],[70,70,71,76],[70,77,71,87],[70,88,71,95],[70,96,71,105],[68,10,69,21],[68,22,69,27],[68,28,69,29],[68,30,69,38],[68,39,69,46],[68,47,69,54],[68,55,69,62],[68,63,69,69],[68,70,69,76],[64,77,65,87],[64,88,65,95],[64,96,65,105],[66,10,67,21],[66,22,67,27],[66,28,67,29],[66,30,67,38],[66,39,67,46],[66,96,67,105],[66,47,67,54],[66,55,67,62],[66,63,67,69],[66,70,67,76],[66,77,67,87],[66,88,67,95],[64,10,65,21],[64,22,65,27],[64,28,65,29],[64,30,65,38],[64,39,65,46],[64,47,65,54],[64,55,65,62],[64,63,65,69],[64,70,65,76],[60,10,61,21],[60,22,61,27],[60,28,61,29],[60,30,61,38],[60,39,61,46],[60,96,61,105],[62,10,63,21],[62,22,63,27],[62,28,63,29],[62,30,63,38],[62,39,63,46],[62,47,63,54],[62,55,63,62],[62,63,63,69],[62,70,63,76],[60,47,61,54],[60,55,61,62],[60,63,61,69],[60,70,61,76],[60,77,61,87],[60,88,61,95],[62,77,63,87],[62,88,63,95],[62,96,63,105],[56,77,57,87],[56,88,57,95],[56,96,57,105],[58,10,59,21],[58,22,59,27],[58,28,59,29],[58,30,59,38],[58,39,59,46],[58,47,59,54],[58,55,59,62],[58,63,59,69],[58,70,59,76],[58,77,59,87],[58,88,59,95],[58,96,59,105],[56,10,57,21],[56,22,57,27],[56,28,57,29],[56,30,57,38],[56,39,57,46],[56,47,57,54],[56,55,57,62],[56,63,57,69],[56,70,57,76],[52,77,53,87],[52,88,53,95],[52,96,53,105],[54,10,55,21],[54,22,55,27],[54,28,55,29],[54,30,55,38],[54,39,55,46],[54,96,55,105],[54,47,55,54],[54,55,55,62],[54,63,55,69],[54,70,55,76],[54,77,55,87],[54,88,55,95],[52,10,53,21],[52,22,53,27],[52,28,53,29],[52,30,53,38],[52,39,53,46],[52,47,53,54],[52,55,53,62],[52,63,53,69],[52,70,53,76],[48,10,49,21],[48,22,49,27],[48,28,49,29],[48,30,49,38],[48,39,49,46],[48,96,49,105],[50,10,51,21],[50,22,51,27],[50,28,51,29],[50,30,51,38],[50,39,51,46],[50,47,51,54],[50,55,51,62],[50,63,51,69],[50,70,51,76],[48,47,49,54],[48,55,49,62],[48,63,49,69],[48,70,49,76],[48,77,49,87],[48,88,49,95],[50,77,51,87],[50,88,51,95],[50,96,51,105],[44,77,45,87],[44,88,45,95],[44,96,45,105],[46,10,47,21],[46,22,47,27],[46,28,47,29],[46,30,47,38],[46,39,47,46],[46,47,47,54],[46,55,47,62],[46,63,47,69],[46,70,47,76],[46,77,47,87],[46,88,47,95],[46,96,47,105],[44,10,45,21],[44,22,45,27],[44,28,45,29],[44,30,45,38],[44,39,45,46],[44,47,45,54],[44,55,45,62],[44,63,45,69],[44,70,45,76],[40,77,41,87],[40,88,41,95],[40,96,41,105],[42,10,43,21],[42,22,43,27],[42,28,43,29],[42,30,43,38],[42,39,43,46],[42,96,43,105],[42,47,43,54],[42,55,43,62],[42,63,43,69],[42,70,43,76],[42,77,43,87],[42,88,43,95],[40,10,41,21],[40,22,41,27],[40,28,41,29],[40,30,41,38],[40,39,41,46],[40,47,41,54],[40,55,41,62],[40,63,41,69],[40,70,41,76],[36,10,37,21],[36,22,37,27],[36,28,37,29],[36,30,37,38],[36,39,37,46],[36,96,37,105],[38,10,39,21],[38,22,39,27],[38,28,39,29],[38,30,39,38],[38,39,39,46],[38,47,39,54],[38,55,39,62],[38,63,39,69],[38,70,39,76],[36,47,37,54],[36,55,37,62],[36,63,37,69],[36,70,37,76],[36,77,37,87],[36,88,37,95],[38,77,39,87],[38,88,39,95],[38,96,39,105],[32,77,33,87],[32,88,33,95],[32,96,33,105],[34,10,35,21],[34,22,35,27],[34,28,35,29],[34,30,35,38],[34,39,35,46],[34,47,35,54],[34,55,35,62],[34,63,35,69],[34,70,35,76],[34,77,35,87],[34,88,35,95],[34,96,35,105],[32,10,33,21],[32,22,33,27],[32,28,33,29],[32,30,33,38],[32,39,33,46],[32,47,33,54],[32,55,33,62],[32,63,33,69],[32,70,33,76],[28,77,29,87],[28,88,29,95],[28,96,29,105],[30,10,31,21],[30,22,31,27],[30,28,31,29],[30,30,31,38],[30,39,31,46],[30,96,31,105],[30,47,31,54],[30,55,31,62],[30,63,31,69],[30,70,31,76],[30,77,31,87],[30,88,31,95],[28,10,29,21],[28,22,29,27],[28,28,29,29],[28,30,29,38],[28,39,29,46],[28,47,29,54],[28,55,29,62],[28,63,29,69],[28,70,29,76],[24,10,25,21],[24,22,25,27],[24,28,25,29],[24,30,25,38],[24,39,25,46],[24,96,25,105],[26,10,27,21],[26,22,27,27],[26,28,27,29],[26,30,27,38],[26,39,27,46],[26,47,27,54],[26,55,27,62],[26,63,27,69],[26,70,27,76],[24,47,25,54],[24,55,25,62],[24,63,25,69],[24,70,25,76],[24,77,25,87],[24,88,25,95],[26,77,27,87],[26,88,27,95],[26,96,27,105],[20,96,21,105],[22,10,23,21],[22,22,23,27],[22,28,23,29],[22,30,23,38],[22,39,23,46],[22,47,23,54],[22,55,23,62],[22,63,23,69],[22,70,23,76],[22,77,23,87],[22,88,23,95],[22,96,23,105],[16,96,17,105],[18,10,19,21],[18,22,19,27],[18,28,19,29],[18,30,19,38],[18,39,19,46],[18,96,19,105],[20,10,21,21],[20,22,21,27],[20,28,21,29],[20,30,21,38],[20,39,21,46],[20,47,21,54],[20,55,21,62],[20,63,21,69],[20,70,21,76],[18,47,19,54],[18,55,19,62],[18,63,19,69],[18,70,19,76],[18,77,19,87],[18,88,19,95],[20,77,21,87],[20,88,21,95],[16,28,17,29],[16,30,17,38],[16,39,17,46],[16,47,17,54],[16,55,17,62],[16,63,17,69],[16,70,17,76],[16,77,17,87],[16,88,17,95],[12,96,13,105],[14,10,15,21],[14,22,15,27],[14,28,15,29],[14,30,15,38],[14,39,15,46],[14,47,15,54],[14,55,15,62],[14,63,15,69],[14,70,15,76],[12,47,13,54],[12,55,13,62],[12,63,13,69],[12,70,13,76],[12,77,13,87],[12,88,13,95],[14,77,15,87],[14,88,15,95],[14,96,15,105],[6,70,7,76],[8,70,9,76],[4,47,5,54],[6,47,7,54],[10,63,11,69],[10,70,11,76],[10,77,11,87],[10,88,11,95],[10,96,11,105],[2,88,3,95],[2,96,3,105],[4,10,5,21],[6,10,7,21],[8,10,9,21],[4,22,5,27],[6,22,7,27],[8,22,9,27],[4,28,5,29],[6,28,7,29],[8,39,9,46],[4,96,5,105],[6,96,7,105],[8,96,9,105],[4,77,5,87],[6,77,7,87],[8,77,9,87],[4,88,5,95],[6,88,7,95],[8,88,9,95],[4,63,5,69],[6,63,7,69],[8,63,9,69],[4,70,5,76],[4,2,9,9],[10,2,15,9],[16,2,21,9],[22,2,27,9],[4,39,5,46],[6,39,7,46],[8,47,9,54],[4,55,5,62],[6,55,7,62],[8,55,9,62],[10,10,11,21],[10,22,11,27],[10,28,11,29],[10,30,11,38],[10,39,11,46],[10,47,11,54],[10,55,11,62],[12,10,13,21],[12,22,13,27],[12,28,13,29],[12,30,13,38],[12,39,13,46],[16,10,17,21],[16,22,17,27],[0,2,1,105],[2,2,3,9],[2,10,3,21],[2,22,3,27],[2,30,3,38],[2,28,3,29],[64,2,69,9],[70,2,75,9],[2,55,3,62],[2,63,3,69],[2,70,3,76],[2,77,3,87],[8,28,9,29],[4,30,5,38],[6,30,7,38],[8,30,9,38],[28,2,33,9],[34,2,39,9],[40,2,45,9],[46,2,51,9],[52,2,57,9],[58,2,63,9],[2,39,3,46],[2,47,3,54]]}
[null,null,"PROSESLERE GÖRE AYLIK TÜKETİM DAĞILIMI"]
[]
[null,null,"Aylar",null,null,null,null,null,null,null,"Tüketilen Kaynak",null,null,null,null,null,null,null,null,null,null,null,"Birimi",null,null,null,null,null,null,null,"İplik Ön Hazırlık",null,null,null,null,null,null,null,null,"İplik Büküm",null,null,null,null,null,null,null,"İplik Boyama",null,null,null,null,null,null,null,"Dokumaya Hazırlık",null,null,null,null,null,null,null,"Dokuma",null,null,null,null,null,null,"Örme",null,null,null,null,null,null,"Kumaş Baskı-Boyama Terbiye İşlemleri",null,null,null,null,null,null,null,null,null,null,"İkincil\nİşlemler",null,null,null,null,null,null,null,"Paketleme, Depolama \nSevkiyat"]
[]
[null,null,"OCAK",null,null,null,null,null,null,null,"Elektrik Tüketimi",null,null,null,null,null,null,null,null,null,null,null,"TEP/Ay",null,null,null,null,null,":"]
[]
[null,null,null,null,null,null,null,null,null,null,"Isıl Enerji Tüketimi",null,null,null,null,null,null,null,null,null,null,null,"TEP/Ay",null,null,null,null,null,":"]
[]
[null,null,null,null,null,null,null,null,null,null,"Fiili Üretim Miktarı",null,null,null,null,null,null,null,null,null,null,null,"Seçiniz",null,null,null,null,null,":"]
[]
[null,null,"ŞUBAT",null,null,null,null,null,null,null,"Elektrik Tüketimi",null,null,null,null,null,null,null,null,null,null,null,"TEP/Ay",null,null,null,null,null,":"]
[]
[null,null,null,null,null,null,null,null,null,null,"Isıl Enerji Tüketimi",null,null,null,null,null,null,null,null,null,null,null,"TEP/Ay",null,null,null,null,null,":"]
[]
[null,null,null,null,null,null,null,null,null,null,"Fiili Üretim Miktarı",null,null,null,null,null,null,null,null,null,null,null,"Seçiniz",null,null,null,null,null,":"]
[]
[null,null,"MART",null,null,null,null,null,null,null,"Elektrik Tüketimi",null,null,null,null,null,null,null,null,null,null,null,"TEP/Ay",null,null,null,null,null,":"]
[]
[null,null,null,null,null,null,null,null,null,null,"Isıl Enerji Tüketimi",null,null,null,null,null,null,null,null,null,null,null,"TEP/Ay",null,null,null,null,null,":"]
[]
[null,null,null,null,null,null,null,null,null,null,"Fiili Üretim Miktarı",null,null,null,null,null,null,null,null,null,null,null,"Seçiniz",null,null,null,null,null,":"]
[]
[null,null,"NİSAN",null,null,null,null,null,null,null,"Elektrik Tüketimi",null,null,null,null,null,null,null,null,null,null,null,"TEP/Ay",null,null,null,null,null,":"]
[]
[null,null,null,null,null,null,null,null,null,null,"Isıl Enerji Tüketimi",null,null,null,null,null,null,null,null,null,null,null,"TEP/Ay",null,null,null,null,null,":"]
[]
[null,null,null,null,null,null,null,null,null,null,"Fiili Üretim Miktarı",null,null,null,null,null,null,null,null,null,null,null,"Seçiniz",null,null,null,null,null,":"]
[]
[null,null,"MAYIS",null,null,null,null,null,null,null,"Elektrik Tüketimi",null,null,null,null,null,null,null,null,null,null,null,"TEP/Ay",null,null,null,null,null,":"]
[]
[null,null,null,null,null,null,null,null,null,null,"Isıl Enerji Tüketimi",null,null,null,null,null,null,null,null,null,null,null,"TEP/Ay",null,null,null,null,null,":"]
[]
[null,null,null,null,null,null,null,null,null,null,"Fiili Üretim Miktarı",null,null,null,null,null,null,null,null,null,null,null,"Seçiniz",null,null,null,null,null,":"]
[]
[null,null,"HAZİRAN",null,null,null,null,null,null,null,"Elektrik Tüketimi",null,null,null,null,null,null,null,null,null,null,null,"TEP/Ay",null,null,null,null,null,":"]
[]
[null,null,null,null,null,null,null,null,null,null,"Isıl Enerji Tüketimi",null,null,null,null,null,null,null,null,null,null,null,"TEP/Ay",null,null,null,null,null,":"]
[]
[null,null,null,null,null,null,null,null,null,null,"Fiili Üretim Miktarı",null,null,null,null,null,null,null,null,null,null,null,"Seçiniz",null,null,null,null,null,":"]
[]
[null,null,"TEMMUZ",null,null,null,null,null,null,null,"Elektrik Tüketimi",null,null,null,null,null,null,null,null,null,null,null,"TEP/Ay",null,null,null,null,null,":"]
[]
[null,null,null,null,null,null,null,null,null,null,"Isıl Enerji Tüketimi",null,null,null,null,null,null,null,null,null,null,null,"TEP/Ay",null,null,null,null,null,":"]
[]
[null,null,null,null,null,null,null,null,null,null,"Fiili Üretim Miktarı",null,null,null,null,null,null,null,null,null,null,null,"Seçiniz",null,null,null,null,null,":"]
[]
[null,null,"AĞUSTOS",null,null,null,null,null,null,null,"Elektrik Tüketimi",null,null,null,null,null,null,null,null,null,null,null,"TEP/Ay",null,null,null,null,null,":"]
[]
[null,null,null,null,null,null,null,null,null,null,"Isıl Enerji Tüketimi",null,null,null,null,null,null,null,null,null,null,null,"TEP/Ay",null,null,null,null,null,":"]
[]
[null,null,null,null,null,null,null,null,null,null,"Fiili Üretim Miktarı",null,null,null,null,null,null,null,null,null,null,null,"Seçiniz",null,null,null,null,null,":"]
[]
[null,null,"EYLÜL",null,null,null,null,null,null,null,"Elektrik Tüketimi",null,null,null,null,null,null,null,null,null,null,null,"TEP/Ay",null,null,null,null,null,":"]
[]
[null,null,null,null,null,null,null,null,null,null,"Isıl Enerji Tüketimi",null,null,null,null,null,null,null,null,null,null,null,"TEP/Ay",null,null,null,null,null,":"]
[]
[null,null,null,null,null,null,null,null,null,null,"Fiili Üretim Miktarı",null,null,null,null,null,null,null,null,null,null,null,"Seçiniz",null,null,null,null,null,":"]
[]
[null,null,"EKİM",null,null,null,null,null,null,null,"Elektrik Tüketimi",null,null,null,null,null,null,null,null,null,null,null,"TEP/Ay",null,null,null,null,null,":"]
[]
[null,null,null,null,null,null,null,null,null,null,"Isıl Enerji Tüketimi",null,null,null,null,null,null,null,null,null,null,null,"TEP/Ay",null,null,null,null,null,":"]
[]
[null,null,null,null,null,null,null,null,null,null,"Fiili Üretim Miktarı",null,null,null,null,null,null,null,null,null,null,null,"Seçiniz",null,null,null,null,null,":"]
[]
[null,null,"KASIM",null,null,null,null,null,null,null,"Elektrik Tüketimi",null,null,null,null,null,null,null,null,null,null,null,"TEP/Ay",null,null,null,null,null,":"]
[]
[null,null,null,null,null,null,null,null,null,null,"Isıl Enerji Tüketimi",null,null,null,null,null,null,null,null,null,null,null,"TEP/Ay",null,null,null,null,null,":"]
[]
[null,null,null,null,null,null,null,null,null,null,"Fiili Üretim Miktarı",null,null,null,null,null,null,null,null,null,null,null,"Seçiniz",null,null,null,null,null,":"]
[]
[null,null,"ARALIK",null,null,null,null,null,null,null,"Elektrik Tüketimi",null,null,null,null,null,null,null,null,null,null,null,"TEP/Ay",null,null,null,null,null,":"]
[]
[null,null,null,null,null,null,null,null,null,null,"Isıl Enerji Tüketimi",null,null,null,null,null,null,null,null,null,null,null,"TEP/Ay",null,null,null,null,null,":"]
[]
[null,null,null,null,null,null,null,null,null,null,"Fiili Üretim Miktarı",null,null,null,null,null,null,null,null,null,null,null,"Seçiniz",null,null,null,null,null,":"]

{"sheet":"Ana Ekipmanlar - Fırın","index":10,"n_rows":21,"n_cols":45,"rows_kept":21,"cut":false,"hidden":false,"merged":[[20,40,20,43],[20,44,20,47],[19,35,19,39],[19,40,19,43],[19,44,19,47],[20,1,20,8],[20,9,20,14],[20,15,20,19],[20,20,20,24],[20,25,20,29],[20,30,20,34],[20,35,20,39],[19,1,19,8],[19,9,19,14],[19,15,19,19],[19,20,19,24],[19,25,19,29],[19,30,19,34],[18,1,18,8],[18,9,18,14],[18,15,18,19],[18,20,18,24],[18,25,18,29],[18,30,18,34],[18,35,18,39],[18,40,18,43],[18,44,18,47],[17,1,17,8],[17,9,17,14],[17,15,17,19],[17,20,17,24],[17,25,17,29],[17,30,17,34],[17,35,17,39],[17,40,17,43],[17,44,17,47],[15,35,15,39],[15,40,15,43],[15,44,15,47],[16,1,16,8],[16,9,16,14],[16,15,16,19],[16,20,16,24],[16,25,16,29],[16,30,16,34],[16,35,16,39],[15,1,15,8],[15,9,15,14],[15,15,15,19],[15,20,15,24],[15,25,15,29],[15,30,15,34],[16,40,16,43],[16,44,16,47],[14,1,14,8],[14,9,14,14],[14,15,14,19],[14,20,14,24],[14,25,14,29],[14,30,14,34],[14,35,14,39],[14,40,14,43],[14,44,14,47],[13,1,13,8],[13,9,13,14],[13,15,13,19],[13,20,13,24],[13,25,13,29],[13,30,13,34],[13,35,13,39],[13,40,13,43],[13,44,13,47],[11,35,11,39],[11,40,11,43],[11,44,11,47],[12,1,12,8],[12,9,12,14],[12,15,12,19],[12,20,12,24],[12,25,12,29],[12,30,12,34],[12,35,12,39],[11,1,11,8],[11,9,11,14],[11,15,11,19],[11,20,11,24],[11,25,11,29],[11,30,11,34],[12,40,12,43],[12,44,12,47],[10,1,10,8],[10,9,10,14],[10,15,10,19],[10,20,10,24],[10,25,10,29],[10,30,10,34],[10,35,10,39],[10,40,10,43],[10,44,10,47],[9,1,9,8],[9,9,9,14],[9,15,9,19],[9,20,9,24],[9,25,9,29],[9,30,9,34],[9,35,9,39],[9,40,9,43],[9,44,9,47],[7,35,7,39],[7,40,7,43],[7,44,7,47],[8,1,8,8],[8,9,8,14],[8,15,8,19],[8,20,8,24],[8,25,8,29],[8,30,8,34],[8,35,8,39],[7,1,7,8],[7,9,7,14],[7,15,7,19],[7,20,7,24],[7,25,7,29],[7,30,7,34],[8,40,8,43],[8,44,8,47],[6,1,6,8],[6,9,6,14],[6,15,6,19],[6,20,6,24],[6,25,6,29],[6,30,6,34],[6,35,6,39],[6,40,6,43],[6,44,6,47],[5,1,5,8],[5,9,5,14],[5,15,5,19],[5,20,5,24],[5,25,5,29],[5,30,5,34],[5,35,5,39],[5,40,5,43],[5,44,5,47],[2,35,3,39],[2,40,3,43],[2,44,3,47],[4,1,4,8],[4,9,4,14],[4,15,4,19],[4,20,4,24],[4,25,4,29],[4,30,4,34],[4,35,4,39],[2,1,3,8],[2,9,3,14],[2,15,3,19],[2,20,3,24],[2,25,3,29],[2,30,3,34],[4,40,4,43],[4,44,4,47]]}
[]
[]
[null,"Fırın Adı / Marka / Model",null,null,null,null,null,null,null,"Fırın Tipi",null,null,null,null,null,"Fırın Yaşı",null,null,null,null,"Isı Geri Kazanımı",null,null,null,null,"Fırın Isıl Verimi\n(%)",null,null,null,null,"Üretim Kapasitesi\n(Ton/Yıl)",null,null,null,null,"Fiili Üretim Miktarı\n(Ton/Yıl)",null,null,null,null,"Elektrik Tüketimi \n(TEP/Yıl)",null,null,null,"Yakıt \nTüketimi\n(TEP/Yıl)"]
[]
[null,null,null,null,null,null,null,null,null,"Seçiniz",null,null,null,null,null,"Seçiniz",null,null,null,null,"Seçiniz"]
[null,null,null,null,null,null,null,null,null,"Seçiniz",null,null,null,null,null,"Seçiniz",null,null,null,null,"Seçiniz"]
[null,null,null,null,null,null,null,null,null,"Seçiniz",null,null,null,null,null,"Seçiniz",null,null,null,null,"Seçiniz"]
[null,null,null,null,null,null,null,null,null,"Seçiniz",null,null,null,null,null,"Seçiniz",null,null,null,null,"Seçiniz"]
[null,null,null,null,null,null,null,null,null,"Seçiniz",null,null,null,null,null,"Seçiniz",null,null,null,null,"Seçiniz"]
[null,null,null,null,null,null,null,null,null,"Seçiniz",null,null,null,null,null,"Seçiniz",null,null,null,null,"Seçiniz"]
[null,null,null,null,null,null,null,null,null,"Seçiniz",null,null,null,null,null,"Seçiniz",null,null,null,null,"Seçiniz"]
[null,null,null,null,null,null,null,null,null,"Seçiniz",null,null,null,null,null,"Seçiniz",null,null,null,null,"Seçiniz"]
[null,null,null,null,null,null,null,null,null,"Seçiniz",null,null,null,null,null,"Seçiniz",null,null,null,null,"Seçiniz"]
[null,null,null,null,null,null,null,null,null,"Seçiniz",null,null,null,null,null,"Seçiniz",null,null,null,null,"Seçiniz"]
[null,null,null,null,null,null,null,null,null,"Seçiniz",null,null,null,null,null,"Seçiniz",null,null,null,null,"Seçiniz"]
[null,null,null,null,null,null,null,null,null,"Seçiniz",null,null,null,null,null,"Seçiniz",null,null,null,null,"Seçiniz"]
[null,null,null,null,null,null,null,null,null,"Seçiniz",null,null,null,null,null,"Seçiniz",null,null,null,null,"Seçiniz"]
[null,null,null,null,null,null,null,null,null,"Seçiniz",null,null,null,null,null,"Seçiniz",null,null,null,null,"Seçiniz"]
[null,null,null,null,null,null,null,null,null,"Seçiniz",null,null,null,null,null,"Seçiniz",null,null,null,null,"Seçiniz"]
[null,null,null,null,null,null,null,null,null,"Seçiniz",null,null,null,null,null,"Seçiniz",null,null,null,null,"Seçiniz"]
[null,null,null,null,null,null,null,null,null,"Seçiniz",null,null,null,null,null,"Seçiniz",null,null,null,null,"Seçiniz"]

{"sheet":"Ana Ekipmanlar - Kazanlar","index":11,"n_rows":21,"n_cols":45,"rows_kept":21,"cut":false,"hidden":false,"merged":[[20,40,20,43],[20,44,20,47],[19,35,19,39],[19,40,19,43],[19,44,19,47],[20,1,20,8],[20,9,20,14],[20,15,20,19],[20,20,20,24],[20,25,20,29],[20,30,20,34],[20,35,20,39],[19,1,19,8],[19,9,19,14],[19,15,19,19],[19,20,19,24],[19,25,19,29],[19,30,19,34],[18,1,18,8],[18,9,18,14],[18,15,18,19],[18,20,18,24],[18,25,18,29],[18,30,18,34],[18,35,18,39],[18,40,18,43],[18,44,18,47],[17,1,17,8],[17,9,17,14],[17,15,17,19],[17,20,17,24],[17,25,17,29],[17,30,17,34],[17,35,17,39],[17,40,17,43],[17,44,17,47],[15,35,15,39],[15,40,15,43],[15,44,15,47],[16,1,16,8],[16,9,16,14],[16,15,16,19],[16,20,16,24],[16,25,16,29],[16,30,16,34],[16,35,16,39],[15,1,15,8],[15,9,15,14],[15,15,15,19],[15,20,15,24],[15,25,15,29],[15,30,15,34],[16,40,16,43],[16,44,16,47],[14,1,14,8],[14,9,14,14],[14,15,14,19],[14,20,14,24],[14,25,14,29],[14,30,14,34],[14,35,14,39],[14,40,14,43],[14,44,14,47],[13,1,13,8],[13,9,13,14],[13,15,13,19],[13,20,13,24],[13,25,13,29],[13,30,13,34],[13,35,13,39],[13,40,13,43],[13,44,13,47],[11,35,11,39],[11,40,11,43],[11,44,11,47],[12,1,12,8],[12,9,12,14],[12,15,12,19],[12,20,12,24],[12,25,12,29],[12,30,12,34],[12,35,12,39],[11,1,11,8],[11,9,11,14],[11,15,11,19],[11,20,11,24],[11,25,11,29],[11,30,11,34],[12,40,12,43],[12,44,12,47],[10,1,10,8],[10,9,10,14],[10,15,10,19],[10,20,10,24],[10,25,10,29],[10,30,10,34],[10,35,10,39],[10,40,10,43],[10,44,10,47],[9,1,9,8],[9,9,9,14],[9,15,9,19],[9,20,9,24],[9,25,9,29],[9,30,9,34],[9,35,9,39],[9,40,9,43],[9,44,9,47],[7,35,7,39],[7,40,7,43],[7,44,7,47],[8,1,8,8],[8,9,8,14],[8,15,8,19],[8,20,8,24],[8,25,8,29],[8,30,8,34],[8,35,8,39],[7,1,7,8],[7,9,7,14],[7,15,7,19],[7,20,7,24],[7,25,7,29],[7,30,7,34],[8,40,8,43],[8,44,8,47],[6,1,6,8],[6,9,6,14],[6,15,6,19],[6,20,6,24],[6,25,6,29],[6,30,6,34],[6,35,6,39],[6,40,6,43],[6,44,6,47],[5,1,5,8],[5,9,5,14],[5,15,5,19],[5,20,5,24],[5,25,5,29],[5,30,5,34],[5,35,5,39],[5,40,5,43],[5,44,5,47],[2,35,3,39],[2,40,3,43],[2,44,3,47],[4,1,4,8],[4,9,4,14],[4,15,4,19],[4,20,4,24],[4,25,4,29],[4,30,4,34],[4,35,4,39],[2,1,3,8],[2,9,3,14],[2,15,3,19],[2,20,3,24],[2,25,3,29],[2,30,3,34],[4,40,4,43],[4,44,4,47]]}
[]
[]
[null,"Kazan Adı / Marka / Model",null,null,null,null,null,null,null,"Üretilen\n Akışkan Tipi",null,null,null,null,null,"Kazan Yaşı",null,null,null,null,"Atık Isı Geri Kazanımı",null,null,null,null,"Kazan \nIsıl Verimi\n(%)",null,null,null,null,"Fiili Üretim Miktarı\n(Ton/Yıl)",null,null,null,null,"Kullanım Süresi\n(saat/Yıl)",null,null,null,null,"Elektrik Tüketimi \n(TEP/Yıl)",null,null,null,"Yakıt \nTüketimi\n(TEP/Yıl)"]
[]
[null,null,null,null,null,null,null,null,null,"Seçiniz",null,null,null,null,null,"Seçiniz",null,null,null,null,"Seçiniz"]
[null,null,null,null,null,null,null,null,null,"Seçiniz",null,null,null,null,null,"Seçiniz",null,null,null,null,"Seçiniz"]
[null,null,null,null,null,null,null,null,null,"Seçiniz",null,null,null,null,null,"Seçiniz",null,null,null,null,"Seçiniz"]
[null,null,null,null,null,null,null,null,null,"Seçiniz",null,null,null,null,null,"Seçiniz",null,null,null,null,"Seçiniz"]
[null,null,null,null,null,null,null,null,null,"Seçiniz",null,null,null,null,null,"Seçiniz",null,null,null,null,"Seçiniz"]
[null,null,null,null,null,null,null,null,null,"Seçiniz",null,null,null,null,null,"Seçiniz",null,null,null,null,"Seçiniz"]
[null,null,null,null,null,null,null,null,null,"Seçiniz",null,null,null,null,null,"Seçiniz",null,null,null,null,"Seçiniz"]
[null,null,null,null,null,null,null,null,null,"Seçiniz",null,null,null,null,null,"Seçiniz",null,null,null,null,"Seçiniz"]
[null,null,null,null,null,null,null,null,null,"Seçiniz",null,null,null,null,null,"Seçiniz",null,null,null,null,"Seçiniz"]
[null,null,null,null,null,null,null,null,null,"Seçiniz",null,null,null,null,null,"Seçiniz",null,null,null,null,"Seçiniz"]
[null,null,null,null,null,null,null,null,null,"Seçiniz",null,null,null,null,null,"Seçiniz",null,null,null,null,"Seçiniz"]
[null,null,null,null,null,null,null,null,null,"Seçiniz",null,null,null,null,null,"Seçiniz",null,null,null,null,"Seçiniz"]
[null,null,null,null,null,null,null,null,null,"Seçiniz",null,null,null,null,null,"Seçiniz",null,null,null,null,"Seçiniz"]
[null,null,null,null,null,null,null,null,null,"Seçiniz",null,null,null,null,null,"Seçiniz",null,null,null,null,"Seçiniz"]
[null,null,null,null,null,null,null,null,null,"Seçiniz",null,null,null,null,null,"Seçiniz",null,null,null,null,"Seçiniz"]
[null,null,null,null,null,null,null,null,null,"Seçiniz",null,null,null,null,null,"Seçiniz",null,null,null,null,"Seçiniz"]
[null,null,null,null,null,null,null,null,null,"Seçiniz",null,null,null,null,null,"Seçiniz",null,null,null,null,"Seçiniz"]

{"sheet":"Ana Ekipmanlar - Kojen","index":12,"n_rows":25,"n_cols":42,"rows_kept":25,"cut":false,"hidden":false,"merged":[[23,36,23,40],[23,41,23,45],[24,1,24,10],[24,11,24,15],[24,16,24,20],[24,21,24,25],[24,27,24,31],[24,32,24,35],[24,36,24,40],[24,41,24,45],[23,1,23,10],[23,11,23,15],[23,16,23,20],[23,21,23,25],[23,27,23,31],[23,32,23,35],[21,36,21,40],[21,41,21,45],[22,1,22,10],[22,11,22,15],[22,16,22,20],[22,21,22,25],[22,27,22,31],[22,32,22,35],[22,36,22,40],[22,41,22,45],[21,1,21,10],[21,11,21,15],[21,16,21,20],[21,21,21,25],[21,27,21,31],[21,32,21,35],[19,36,19,40],[19,41,19,45],[20,1,20,10],[20,11,20,15],[20,16,20,20],[20,21,20,25],[20,27,20,31],[20,32,20,35],[20,36,20,40],[20,41,20,45],[19,1,19,10],[19,11,19,15],[19,16,19,20],[19,21,19,25],[19,27,19,31],[19,32,19,35],[17,36,17,40],[17,41,17,45],[18,1,18,10],[18,11,18,15],[18,16,18,20],[18,21,18,25],[18,27,18,31],[18,32,18,35],[18,36,18,40],[18,41,18,45],[17,1,17,10],[17,11,17,15],[17,16,17,20],[17,21,17,25],[17,27,17,31],[17,32,17,35],[15,36,15,40],[15,41,15,45],[16,1,16,10],[16,11,16,15],[16,16,16,20],[16,21,16,25],[16,27,16,31],[16,32,16,35],[16,36,16,40],[16,41,16,45],[15,1,15,10],[15,11,15,15],[15,16,15,20],[15,21,15,25],[15,27,15,31],[15,32,15,35],[13,36,13,40],[13,41,13,45],[14,1,14,10],[14,11,14,15],[14,16,14,20],[14,21,14,25],[14,27,14,31],[14,32,14,35],[14,36,14,40],[14,41,14,45],[13,1,13,10],[13,11,13,15],[13,16,13,20],[13,21,13,25],[13,27,13,31],[13,32,13,35],[11,36,11,40],[11,41,11,45],[12,1,12,10],[12,11,12,15],[12,16,12,20],[12,21,12,25],[12,27,12,31],[12,32,12,35],[12,36,12,40],[12,41,12,45],[11,1,11,10],[11,11,11,15],[11,16,11,20],[11,21,11,25],[11,27,11,31],[11,32,11,35],[9,36,9,40],[9,41,9,45],[10,1,10,10],[10,11,10,15],[10,16,10,20],[10,21,10,25],[10,27,10,31],[10,32,10,35],[10,36,10,40],[10,41,10,45],[9,1,9,10],[9,11,9,15],[9,16,9,20],[9,21,9,25],[9,27,9,31],[9,32,9,35],[7,36,7,40],[7,41,7,45],[8,1,8,10],[8,11,8,15],[8,16,8,20],[8,21,8,25],[8,27,8,31],[8,32,8,35],[8,36,8,40],[8,41,8,45],[7,1,7,10],[7,11,7,15],[7,16,7,20],[7,21,7,25],[7,27,7,31],[7,32,7,35],[1,1,2,45],[5,1,6,10],[5,11,6,15],[5,16,6,20],[5,21,6,25],[5,26,6,26],[5,27,6,31],[5,32,6,35],[5,36,6,40],[5,41,6,45]]}
[]
["►","5627 Sayılı Enerji Verimliliği Kanunu Uyarınca 100 MWe ve üzerinde kurulu gücü bulunan işletmelerin elektrik üretimi ile ilgili alanları Elektrik Üretim Tesisi (EÜT) sayılır ve endüstriyel işletme haricinde bu alan için EÜT formu doldurarak Bakanlığımıza iletirler. "]
[]
[null,"Bunun dışında kojenerasyon tesisi bulunan işletmeler için aşağıdaki tablonun doldurulması beklenmektedir."]
[]
[null,"Üretici Firma, Marka, Model",null,null,null,null,null,null,null,null,null,"Kojen Yaşı",null,null,null,null,"Teknoloji Türü",null,null,null,null,"Ortalama Kullanım Süresi (saat/Yıl)",null,null,null,null,"Kojen Verimi \n(%)","Elektrik Tüketimi\n(TEP/Yıl)",null,null,null,null,"Elektrik Üretimi\n(TEP/Yıl)",null,null,null,"Toplam Yakıt Tüketimi\n(TEP/Yıl)",null,null,null,null,"Toplam Isı Üretimi\n(TEP/Yıl)"]
[]
[null,null,null,null,null,null,null,null,null,null,null,"Seçiniz",null,null,null,null,"Seçiniz"]
[null,null,null,null,null,null,null,null,null,null,null,"Seçiniz",null,null,null,null,"Seçiniz"]
[null,null,null,null,null,null,null,null,null,null,null,"Seçiniz",null,null,null,null,"Seçiniz"]
[null,null,null,null,null,null,null,null,null,null,null,"Seçiniz",null,null,null,null,"Seçiniz"]
[null,null,null,null,null,null,null,null,null,null,null,"Seçiniz",null,null,null,null,"Seçiniz"]
[null,null,null,null,null,null,null,null,null,null,null,"Seçiniz",null,null,null,null,"Seçiniz"]
[null,null,null,null,null,null,null,null,null,null,null,"Seçiniz",null,null,null,null,"Seçiniz"]
[null,null,null,null,null,null,null,null,null,null,null,"Seçiniz",null,null,null,null,"Seçiniz"]
[null,null,null,null,null,null,null,null,null,null,null,"Seçiniz",null,null,null,null,"Seçiniz"]
[null,null,null,null,null,null,null,null,null,null,null,"Seçiniz",null,null,null,null,"Seçiniz"]
[null,null,null,null,null,null,null,null,null,null,null,"Seçiniz",null,null,null,null,"Seçiniz"]
[null,null,null,null,null,null,null,null,null,null,null,"Seçiniz",null,null,null,null,"Seçiniz"]
[null,null,null,null,null,null,null,null,null,null,null,"Seçiniz",null,null,null,null,"Seçiniz"]
[null,null,null,null,null,null,null,null,null,null,null,"Seçiniz",null,null,null,null,"Seçiniz"]
[null,null,null,null,null,null,null,null,null,null,null,"Seçiniz",null,null,null,null,"Seçiniz"]
[null,null,null,null,null,null,null,null,null,null,null,"Seçiniz",null,null,null,null,"Seçiniz"]
[null,null,null,null,null,null,null,null,null,null,null,"Seçiniz",null,null,null,null,"Seçiniz"]
[null,null,null,null,null,null,null,null,null,null,null,"Seçiniz",null,null,null,null,"Seçiniz"]

{"sheet":"Enerji Tüketim Dağılımı","index":13,"n_rows":28,"n_cols":29,"rows_kept":28,"cut":false,"hidden":false,"merged":[[25,1,26,9],[25,10,26,17],[25,18,26,25],[22,28,23,43],[19,1,20,9],[19,10,20,17],[19,18,20,25],[21,1,22,9],[21,10,22,17],[21,18,22,25],[19,28,20,43],[23,1,24,9],[23,10,24,17],[23,18,24,25],[15,1,16,9],[15,10,16,17],[15,18,16,25],[16,28,17,43],[17,1,18,9],[17,10,18,17],[17,18,18,25],[10,28,11,43],[13,28,14,43],[7,1,8,9],[7,10,8,17],[7,18,8,25],[9,1,10,9],[9,10,10,17],[9,18,10,25],[11,1,12,9],[11,10,12,17],[11,18,12,25],[13,1,14,9],[13,10,14,17],[13,18,14,25],[0,2,0,43],[1,2,1,43],[2,2,2,43],[3,2,3,43],[5,1,6,9],[5,10,6,17],[5,18,6,25],[5,28,6,43]]}
[null,"►","Sayaçlarla ölçümün mümkün olmadığı hallerde mühendislik yaklaşımları kullanarak veya varsa binanız için hazırlanan etüt raporlarından faydalanabilirsiniz. "]
[null,"►","Kazan, Fırın gibi içerisinde yardımcı ekipman olarak motor,pompa,fan vs bulunan sistemleri bir bütün sistem olarak değerlendiriniz."]
[null,"►","5,5 kW ve altındaki güçte motor tahrikli sistemleri (Motor, Pompa, Fan, Kompresör vs) ihmal edebilirsiniz."]
[null,"►","Ekipmanların yüzdesel dağılımında Enerji Tüketim Bildirimi esas alınacaktır. Her bir sütun kendi içinde toplamda %100 değerini sağlayacaktır."]
[null,null,null,null,null,null,null,null,null,null,null,null,null,null,null,null,null,null,null,null,null,null,null,null,null,null,null,"►","Kazanlar"]
[null,"Enerjinin Kullanım Alanı",null,null,null,null,null,null,null,null,"Elektrik Tüketimi\n(%)",null,null,null,null,null,null,null,"Yakıt Tüketimi\n(%)",null,null,null,null,null,null,null,null,null,"Sıcak Su ve Buhar Temininde kullanılan kazanların toplam tüketimdeki payını giriniz"]
[]
[null,"Motorlar",null,null,null,null,null,null,null,null,null,null,null,null,null,null,null,null,null,null,null,null,null,null,null,null,null,"►","Fırınlar"]
[null,null,null,null,null,null,null,null,null,null,null,null,null,null,null,null,null,null,null,null,null,null,null,null,null,null,null,null,"Kurutma Fırınlarının toplam enerji tüketimindeki payını giriniz."]
[null,"Pompalar",null,null,null,null,null,null,null,null,null,null,null,null,null,null,null,null,null,null,null,null,null,null,null,null,null,"►","Motorlar"]
[null,null,null,null,null,null,null,null,null,null,null,null,null,null,null,null,null,null,null,null,null,null,null,null,null,null,null,null,"Tesiste yer alan 5,5 kW ve üzerindeki motorların toplam tüketimdeki payını giriniz."]
[null,"Fanlar"]
[null,null,null,null,null,null,null,null,null,null,null,null,null,null,null,null,null,null,null,null,null,null,null,null,null,null,null,"►","Pompalar"]
[null,"Kompresörler",null,null,null,null,null,null,null,null,null,null,null,null,null,null,null,null,null,null,null,null,null,null,null,null,null,null,"Su, yağ vs. akışkanların prosese aktarımında kullanılan 5,5 kW ve üzerindeki pompaların toplam tüketimdeki payını giriniz."]
[]
[null,"Aydınlatma",null,null,null,null,null,null,null,null,null,null,null,null,null,null,null,null,null,null,null,null,null,null,null,null,null,"►","Fanlar"]
[null,null,null,null,null,null,null,null,null,null,null,null,null,null,null,null,null,null,null,null,null,null,null,null,null,null,null,null,"Tesiste yer alan 5,5 kW ve üzerindeki fanların toplam tüketimdeki payını giriniz."]
[null,"İklimlendirme (HVAC)"]
[null,null,null,null,null,null,null,null,null,null,null,null,null,null,null,null,null,null,null,null,null,null,null,null,null,null,null,"►","Kompresörler"]
[null,"Soğutma",null,null,null,null,null,null,null,null,null,null,null,null,null,null,null,null,null,null,null,null,null,null,null,null,null,null,"Tesiste yer alan 5,5 kW ve üzerindeki kompresörlerin toplam tüketimdeki payını giriniz."]
[]
[null,"Kazanlar",null,null,null,null,null,null,null,null,null,null,null,null,null,null,null,null,null,null,null,null,null,null,null,null,null,"►","Aydınlatma"]
[null,null,null,null,null,null,null,null,null,null,null,null,null,null,null,null,null,null,null,null,null,null,null,null,null,null,null,null,"İşletme sınırları içerisinde kalan iç ortam ve dış ortam aydınlatma armatürlerinin toplam tüketimdeki payını giriniz."]
[null,"Fırınlar"]
[null,null,null,null,null,null,null,null,null,null,null,null,null,null,null,null,null,null,null,null,null,null,null,null,null,null,null,"►","İklimlendirme"]
[null,"Diğer",null,null,null,null,null,null,null,null,null,null,null,null,null,null,null,null,null,null,null,null,null,null,null,null,null,null,"Klima, havalandırma sistemlerinin toplam tüketimdeki payını giriniz."]
[null,null,null,null,null,null,null,null,null,null,null,null,null,null,null,null,null,null,null,null,null,null,null,null,null,null,null,"►","Soğutma"]
[null,null,null,null,null,null,null,null,null,null,null,null,null,null,null,null,null,null,null,null,null,null,null,null,null,null,null,null,"Soğutma kulesi, Chiller vs toplam tüketimdeki payını giriniz."]

{"sheet":"Enerji Yönetimi","index":14,"n_rows":26,"n_cols":53,"rows_kept":26,"cut":false,"hidden":false,"merged":[[17,39,20,44],[17,45,20,45],[17,46,20,51],[17,52,20,52],[21,2,24,6],[21,7,24,13],[21,14,24,14],[21,15,24,21],[21,22,24,22],[21,23,24,29],[21,52,24,52],[21,30,24,30],[21,31,24,37],[21,38,24,38],[21,39,24,44],[21,45,24,45],[21,46,24,51],[17,23,20,29],[17,30,20,30],[17,31,20,37],[17,38,20,38],[13,30,16,30],[13,31,16,37],[13,38,16,38],[17,2,20,6],[17,7,20,13],[17,14,20,14],[17,15,20,21],[17,22,20,22],[9,39,12,44],[9,45,12,45],[9,46,12,51],[9,52,12,52],[13,2,16,6],[13,7,16,13],[13,14,16,14],[13,15,16,21],[13,22,16,22],[13,23,16,29],[13,52,16,52],[13,39,16,44],[13,45,16,45],[13,46,16,51],[5,52,8,52],[9,2,12,6],[9,7,12,13],[9,14,12,14],[9,15,12,21],[9,22,12,22],[9,23,12,29],[9,30,12,30],[9,31,12,37],[9,38,12,38],[5,30,8,30],[5,31,8,37],[5,38,8,38],[5,39,8,44],[5,45,8,45],[5,46,8,51],[5,23,8,29],[0,39,0,43],[1,39,2,43],[1,47,2,51],[4,2,4,6],[4,7,4,13],[4,15,4,21],[4,23,4,29],[4,31,4,37],[4,39,4,44],[4,46,4,51],[5,2,8,6],[5,7,8,13],[5,14,8,14],[5,15,8,21],[5,22,8,22]]}
[null,null,null,null,null,null,null,null,null,null,null,null,null,null,null,null,null,null,null,null,null,null,null,null,null,null,null,null,null,null,null,null,null,null,null,null,null,null,null,"Başarı Puanı",null,null,null,null,null,null,null,null,null,"TEMİZLE"]
[null,null,"►","Bu anket Enerji Yönetimi Başarı Skorunu belirlemek amacıyla ISO 50001 standardına uygun olarak hazırlanmıştır.",null,null,null,null,null,null,null,null,null,null,null,null,null,null,null,null,null,null,null,null,null,null,null,null,null,null,null,null,null,null,null,null,null,null,null,{"$f":"(O26+W26+AE26+AM26+AT26+BA26)*100/24","v":0},null,null,null,null,null,null,null,"TEMİZLE"]
[null,null,null," Performansın doğru bir şekilde belirlenebilmesi için lütfen her sütundan yalnızca işletmeniz için en uygun olan cevabı seçiniz."]
[]
[null,null,"Seviye",null,null,null,null,"Enerji Politikaları",null,null,null,null,null,null,"P1","İdari Yapılanma",null,null,null,null,null,null,"P2","Yaygınlaştırma",null,null,null,null,null,null,"P3","İzleme ",null,null,null,null,null,null,"P4","Bilinçlendirme",null,null,null,null,null,"P5","Yatırım",null,null,null,null,null,"P6"]
[null,null,null,null,null,null,null,"Belirli bir enerji politikası ve eylem planı bulunmakta olup takibi üst yönetimce yapılmaktadır",null,null,null,null,null,null,0,"Enerji Yönetimi mevcut idari yapının bir parçası olarak faaliyet gösteriyor, görev tanımları açıkça belirtilmektedir",null,null,null,null,null,null,0,"Enerji yöneticisi ve ilgili personel tarafından çeşitli yöntemlerle Enerji Verimliliği çalışmaları yaygınlaştırılmaktadır.",null,null,null,null,null,null,0,"Hedef tanımlama, tüketim izleme, arıza tespiti, tasarrufların belirlemesi ve bütçe takibi  konularında  kapsamlı bir izleme sistemi uygulanmaktadır",null,null,null,null,null,null,0,"Hem tesis içinde hem de dışında enerji verimliliğini destekleyen faaliyetler yürütülmektedir",null,null,null,null,null,0,"Enerji verimliliği ve yenilenebilir enerji projeleri için gerekli yatırımlar yapılmaktadır",null,null,null,null,null,0]
[]
[]
[]
[null,null,null,null,null,null,null,"Belirli bir talimatname olsa da üst yöneticinin desteği alınamamaktadır",null,null,null,null,null,null,0,"Enerji Yöneticisi ilgili idari amirin altında faaliyet gösteren bir komisyona karşı sorumludur ",null,null,null,null,null,null,0,"Enerji Komisyonu tarafından iletişim kanalları yoluyla  enerji verimliliğine yönelik çalışmalar hakkında duyurular yapılmaktadır.",null,null,null,null,null,null,0,"İzleme ve hedef belirleme konusunda ayrıntılı raporlamalar yapılsa bile gerçekleşen tasarruflara ilişkin bilgilendirme yapılmamaktadır",null,null,null,null,null,null,0,"Tesis içinde enerji verimliliğini destekleyecek faaliyetler yürütülmektedir",null,null,null,null,null,0,"Enerji Verimliliğine yönelik  Kısa ve Orta Vadeli projeler hayata geçirilebilmektedir",null,null,null,null,null,0]
[]
[]
[]
[null,null,null,null,null,null,null,"Enerji Yöneticisi görevini aktif şekilde yerine getirememektedir",null,null,null,null,null,null,0,"Enerji Yöneticisi faaliyetlerinde geçici bir komisyona karşı sorumludur",null,null,null,null,null,null,0,"İletişim İlgili idari amir ile geçici komisyon arasında  sağlanmaktadır ",null,null,null,null,null,null,0,"Sadece ana sayaçlar üzerinden izleme hedef belirleme raporları üretilmekte olup tasarruflara ilşkin bilgilendirmeler kısmen yapılmaktadır",null,null,null,null,null,null,0,"Sürekli olmasa da bazen personele yönelik eğitim faaliyetleri düzenlenmektedir",null,null,null,null,null,0,"Sadece  Kısa Vadeli projeler hayata geçirilebilmektedir",null,null,null,null,null,0]
[]
[]
[]
[null,null,null,null,null,null,null,"Yazılı olmayan bir takım talimatlar mevcuttur",null,null,null,null,null,null,0,"Enerji Yönetim faaliyetleri sertifikalı olmayan ve /veya yarı zamnalı çalışan bir personel tarafından yürütülmektedir",null,null,null,null,null,null,0,"Bazı mühendisler ile birkaç teknik personel haricinde kimsenin yapılan çalışmalar hakkında bilgisi bulunmamaktadır",null,null,null,null,null,null,0,"Raporlamalar enerji faturaları üzerinden yapılmakta ve tasarrufa yönelik değerlendirmeler birkaç teknik personel bilgisi dahilinde kalmaktadır",null,null,null,null,null,null,0,"Enerji verimliliğini teşvik edecek faaliyetler yüzeysel çalışmalarla sınırlıdır",null,null,null,null,null,0,"Sadece yatırım gerektirmeyen tasarruf tedbirleri dikkate alınmaktadır",null,null,null,null,null,0]
[]
[]
[]
[null,null,null,null,null,null,null,"Belirgin bir politikamız bulunmamaktadır",null,null,null,null,null,null,0,"Enerji yönetimine ilişkin hiçbir idari yapı bulunmamaktadır",null,null,null,null,null,null,0,"Personel ve yönetimin enerji yönetimini hakkında bilgisi bulunmamaktadır",null,null,null,null,null,null,0,"Herhangi bir bilgi sistemi, izleme aracı kullanılmamaktadır",null,null,null,null,null,null,0,"Enerji verimliliğini teşvik edecek herhangi bir çalışma yapılmamaktadır",null,null,null,null,null,0,"Hiçbir verim artırıcı proje hayata geçirilmemektedir",null,null,null,null,null,0]
[]
[]
[]
[null,null,null,null,null,null,null,null,null,null,null,null,null,null,{"$f":"SUM(O6:O25)","v":0},null,null,null,null,null,null,null,{"$f":"SUM(W6:W25)","v":0},null,null,null,null,null,null,null,{"$f":"SUM(AE6:AE25)","v":0},null,null,null,null,null,null,null,{"$f":"SUM(AM6:AM25)","v":0},null,null,null,null,null,null,{"$f":"SUM(AT6:AT25)","v":0},null,null,null,null,null,null,{"$f":"SUM(BA6:BA25)","v":0}]

{"sheet":"İklimden Arındırma","index":15,"n_rows":48,"n_cols":11,"rows_kept":48,"cut":false,"hidden":true,"merged":[[45,1,45,2],[47,1,47,8],[28,1,28,2],[28,4,28,9],[29,1,29,2],[29,4,29,5],[29,6,29,7],[29,8,29,9],[27,1,27,2],[27,6,27,9],[3,3,3,19],[6,1,6,2],[7,1,7,2],[7,6,7,9],[8,1,8,2],[8,4,8,9],[9,1,9,2],[9,4,9,5],[9,6,9,7],[9,8,9,9],[26,1,26,2]]}
[]
[]
[]
[null,null,null,"CLIMATE DEPENDENT  THERMAL ENERGY CONSUMPTION AND NORMALIZATION"]
[]
[]
[null,"BASE (reference) YEAR",null,2017]
[null,"AVERAGE INTERNAL SPACE TEMPERATURE, oC",null,17]
[null,"% OF RETURN AIR IN VENTILATION",null,30,"Thermal energy consumption for space heating and ventilation"]
[null,"AVERAGE EFFICIENCY OF HEAT REQUPERATION IN VENTILATION, %",null,50,"SPACE HEATING",null,"VENTILATION",null,"TOTAL"]
[null,"MONTH","NUMBER OF HEATING DAYS","AVERAGE AMBIENT TEMPERATURE, oC","HEATING DEGREEDAYS","Thermal energy consumption, kWh","HEATING DEGREEDAYS","Thermal energy consumption, kWh","HEATING DEGREEDAYS (Ddby)","Total energy consumption, kWh"]
[null,1,31,2,{"$f":"C12*($D$8-D12)","v":465},200,{"$f":"($D$8-(D12+($D$8-D12)*$D$9/100))*(1-$D$10/100)*C12","v":162.75},100,{"$f":"E12+G12","v":627.75},{"$f":"F12+H12","v":300}]
[null,2,29,3.2,{"$f":"C13*($D$8-D13)","v":400.20000000000005},180,{"$f":"($D$8-(D13+($D$8-D13)*$D$9/100))*(1-$D$10/100)*C13","v":140.07},80,{"$f":"E13+G13","v":540.27},260]
[null,3,30,6,330,120,115.49999999999999,70,445.5,190]
[null,4,5,9,40,55,14,70,54,125]
[null,5,null,null,0,null,0,null,0,0]
[null,6,null,null,0,null,0,null,0,0]
[null,7,null,null,0,null,0,null,0,0]
[null,8,null,null,0,null,0,null,0,0]
[null,9,null,null,0,null,0,null,0,0]
[null,10,5,5,60,60,21,45,81,105]
[null,11,30,0,510,90,178.5,60,688.5,150]
[null,12,31,-2,589,110,206.15,60,795.15,170]
[null,"TOTAL",{"$f":"SUM(C12:C23)","v":161},null,{"$f":"SUM(E12:E23)","v":2394.1999999999998},815,837.96999999999991,485,3232.17,1300]
[]
[]
[null,"CURRENT YEAR",null,2020]
[null,"AVERAGE INTERNAL SPACE TEMPERATURE, oC",null,17]
[null,"% OF RETURN AIR IN VENTILATION",null,30,"Thermal energy consumption for space heating and ventilation"]
[null,"AVERAGE EFFICIENCY OF HEAT REQUPERATION IN VENTILATION, %",null,50,"SPACE HEATING",null,"VENTILATION",null,"TOTAL"]
[null,"MONTH","NUMBER OF HEATING DAYS","AVERAGE AMBIENT TEMPERATURE, oC","HEATING DEGREEDAYS","Thermal energy consumption, kWh","HEATING DEGREEDAYS","Thermal energy consumption, kWh","HEATING DEGREEDAYS (DDcy)","Total energy consumption, kWh"]
[null,1,31,1,{"$f":"C32*($D$8-D32)","v":496},250,{"$f":"($D$8-(D32+($D$8-D32)*$D$29/100))*(1-$D$30/100)*C32","v":173.6},120,{"$f":"E32+G32","v":669.6},{"$f":"F32+H32","v":370}]
[null,2,29,2,{"$f":"C33*($D$8-D33)","v":435},220,{"$f":"($D$8-(D33+($D$8-D33)*$D$29/100))*(1-$D$30/100)*C33","v":152.25},95,{"$f":"E33+G33","v":587.25},315]
[null,3,30,3.5,405,150,141.75,85,546.75,235]
[null,4,5,4,65,95,22.75,70,87.75,165]
[null,5,null,null,0,null,0,null,0,0]
[null,6,null,null,0,null,0,null,0,0]
[null,7,null,null,0,null,0,null,0,0]
[null,8,null,null,0,null,0,null,0,0]
[null,9,null,null,0,null,0,null,0,0]
[null,10,5,1,80,80,28,75,108,155]
[null,11,30,-3,600,120,210,80,810,200]
[null,12,31,-4,651,250,227.85,90,878.85,340]
[null,"TOTAL",{"$f":"SUM(C32:C43)","v":161},null,{"$f":"SUM(E32:E43)","v":2732},1165,956.2,615,3688.2,1780]
[]
[null,"CCF = DDby/ DDcy   =",null,{"$f":"$I$24/$I$44","v":0.87635431918008788}]
[]
[null,"NORMALIZED ENERGY CONSUMPTION = TOTAL ENERGY CONSUMPTION(current year)* CCF=",null,null,null,null,null,null,null,{"$f":"$J$44*$D$46","v":1559.9106881405564},"kWh"]

{"sheet":"Sayfa1","index":16,"n_rows":21,"n_cols":20,"rows_kept":21,"cut":false,"hidden":true,"merged":[]}
["Seçiniz"]
["13.10 Tekstil Elyafının Hazırlanması ve Bükülmesi",null,null,null,null,"Seçiniz","Seçiniz",null,"Seçiniz","Seçiniz",null,null,null,null,"Seçiniz",null,"Seçiniz",null,"Seçiniz","Seçiniz"]
["13.20 Dokuma",null,null,null,null,"Var","Yapıldı",null,"Ton/Yıl","Isı Geri Kazanımlı Kombine Çevrim Gaz Türbini",null,null,null,null,"5 Yıldan Az",null,"Sıcak Su",null,"Var","Doğalgazlı Kurutma"]
["13.30 Tekstil Ürünlerinin Bitirilmesi",null,null,null,null,"Yok","Yapılmadı",null,"m/Yıl","Karşı Basınçlı Gaz Türbini",null,null,null,null,"5-10 Yıl ",null,"Doymuş Buhar",null,"Yok","İnfraredli Kurutma"]
["13.90 Diğer Tekstil Ürünlerinin İmalatı",null,null,null,null,null,"Yapılması Planlanıyor",null,"m²/Yıl","Ara Buhar Çekilen Yoğuşmalı Buhar Türbini ",null,null,null,null,"10-15 Yıl",null,"Kızgın Buhar",null,null,"Ram Kenar Kurutma"]
[null,null,null,null,null,null,null,null,"adet/Yıl","Isı Geri Kazanımlı Gaz Türbini",null,null,null,null,"15-20 Yıl",null,"Diğer",null,null,"Fikse Fırını"]
[null,null,null,null,null,null,null,null,null,"İçten Yanmalı Motor",null,null,null,null,"20 Yıldan Fazla",null,null,null,null,"Baskı kurutma"]
[null,null,null,null,null,null,null,null,null,"Mikto Türbinler",null,null,null,null,null,null,null,null,null,"Kaplama Kurutma"]
[null,null,null,null,null,null,null,null,null,"Stirling Motoru",null,null,null,null,null,null,null,null,null,"Diğer"]
[null,null,null,null,null,null,null,null,null,"Yakıt Hücresi"]
[null,null,null,null,null,null,null,null,null,"Buhar Makinası"]
[null,null,null,null,null,null,null,null,null,"Organik Rankine Çevrimi"]
[null,null,null,null,null,null,null,null,null,"Diğer"]
[]
[]
[]
[null,null,null,null,null,null,null,null,"Seçiniz"]
[null,null,null,null,null,null,null,null,"Ton/Ay"]
[null,null,null,null,null,null,null,null,"m/Ay"]
[null,null,null,null,null,null,null,null,"m²/Ay"]
[null,null,null,null,null,null,null,null,"adet/Ay"]

{"sheet":"Prodtr","index":17,"n_rows":387,"n_cols":3,"rows_kept":387,"cut":false,"hidden":true,"merged":[]}
["13.10.10.00.00","Yün yağı ve bundan türetilen yağlı maddeler (lanolin dahil)","Kilogram"]
["13.10.21.00.00","Ham ipek (bükülmemiş)","Kilogram"]
["13.10.22.00.00","Yün, yağı alınmış veya karbonize edilmiş (kardelenmemiş veya taranmamış)","Kilogram"]
["13.10.23.00.00","Yün veya ince hayvan kıllarının tarak altı döküntüsü","Kilogram"]
["13.10.24.00.00","Yün veya hayvan kılları (kardelenmiş veya taranmış) (yün topları dahil)","Kilogram"]
["13.10.25.00.00","Pamuk (kardelenmiş veya taranmış)","Kilogram"]
["13.10.26.00.00","Jüt ve diğer tekstil elyafları (keten, saf kenevir ve rami hariç) işlenmiş fakat eğirilmemiş","Kilogram"]
["13.10.29.00.00","Diğer bitkisel tekstil elyafları, işlenmiş fakat eğirilmemiş","Kilogram"]
["13.10.31.00.01","Poliesterden lif ve döküntüler (eğirilme için kardelenmiş, taranmış veya başka şekilde işlenmiş)","Kilogram"]
["13.10.31.00.02","Akrilik veya modakrilikten lif ve döküntüler (eğirilme için kardelenmiş, taranmış veya başka şekilde işlenmiş)","Kilogram"]
["13.10.31.00.99","Diğer sentetik devamsız lifler ve döküntüleri (eğirilme için kardelenmiş, taranmış veya başka şekilde işlenmiş)","Kilogram"]
["13.10.32.00.00","Suni devamsız elyaf (eğirilme için kardelenmiş, taranmış veya başka şekilde işlenmiş)","Kilogram"]
["13.10.40.10.00","İpek iplik (ipek döküntülerinden elde edilenler hariç) (perakende satışa hazır olmayanlar)","Kilogram"]
["13.10.40.30.00","İpek döküntülerinden elde edilen iplikler (perakende satışa hazır olmayanlar)","Kilogram"]
["13.10.40.50.00","İpek iplik ve ipek döküntülerinden elde edilen iplikler (perakende satışa hazır); ipek misina","Kilogram"]
["13.10.50.10.00","Kardelenmiş yünden veya kardelenmiş ince hayvan kılından iplikler (perakende satışa hazır olmayan)","Kilogram"]
["13.10.50.30.00","Taranmış yünden veya taranmış ince hayvan kılından iplikler (perakende satışa hazır olmayan)","Kilogram"]
["13.10.50.50.00","Yün veya ince hayvan kılından iplikler (perakende satışa hazır)","Kilogram"]
["13.10.61.32.00","Dokuma kumaşlar için taranmamış pamuktan iplikler (perakende satışa hazır olmayan) (halı ve yer kaplaması için olanlar hariç)","Kilogram"]
["13.10.61.33.00","Örgü kumaşlar ve çoraplar için taranmamış pamuktan iplikler (perakende satışa hazır olmayan)","Kilogram"]
["13.10.61.35.00","Diğer kullanımlar için taranmamış pamuktan iplikler (perakende satışa hazır olmayan) (halı ve yer kaplaması için olanlar dahil)","Kilogram"]
["13.10.61.52.00","Dokuma kumaşlar için taranmış pamuktan iplikler (perakende satışa hazır olmayan) (halı ve yer kaplaması için olanlar hariç)","Kilogram"]
["13.10.61.53.00","Örgü kumaşlar ve çoraplar için taranmış pamuktan iplikler (perakende satışa hazır olmayan)","Kilogram"]
["13.10.61.55.00","Diğer kullanımlar için taranmış pamuktan iplikler (perakende satışa hazır olmayan) (halı ve yer kaplaması için olanlar dahil)","Kilogram"]
["13.10.61.60.00","Pamuk iplikler (perakende satışa hazır) (dikiş ipliği hariç)","Kilogram"]
["13.10.62.00.00","Pamuk dikiş iplikleri","Kilogram"]
["13.10.71.10.00","Keten iplikler (perakende satışa hazır olmayan)","Kilogram"]
["13.10.71.20.00","Keten iplikler (perakende satışa hazır)","Kilogram"]
["13.10.72.00.00","Bitkisel tekstil elyafından veya bitki kabuğu elyaflarından yapılan iplikler (keten hariç); kağıt iplikleri","Kilogram"]
["13.10.81.10.01","Naylon, diğer poliamidlerden iplik (dikiş ipliği hariç) rötar/kable diğer iplikler (Perakende satışa hazır olmayan)","Kilogram"]
["13.10.81.10.02","Poliesterlerden iplik (dikiş ipliği hariç) rötar/kable diğer iplikler (Perakende satışa hazır olmayan)","Kilogram"]
["13.10.81.10.03","Polipropilenden iplik (dikiş ipliği hariç) rötar/kable (Perakende satışa hazır olmayan)","Kilogram"]
["13.10.81.10.99","Diğer iplikler (Akrilik veya vinil sentetik filamentten iplikler dahil, dikiş ipliği hariç) rötar/kable (perakende satışa hazır olmayan)","Kilogram"]
["13.10.81.30.00","Çok katlı veya bükülü suni filament iplikler (perakende satışa hazır olmayan) (dikiş ipliği hariç)","Kilogram"]
["13.10.81.50.00","Suni ve sentetik filament ipliği, (perakende satışa hazır) (dikiş ipliği hariç)","Kilogram"]
["13.10.82.10.00","İplikler, ağırlığına göre sentetik devamsız elyaf içeriği ≥ % 85 olanlar (dikiş ipliği hariç) (perakende satışa hazır olmayan)","Kilogram"]
["13.10.82.50.00","İplikler, ağırlığına göre sentetik devamsız elyaf içeriği ≥ % 85 olanlar (dikiş ipliği hariç) (perakende satışa hazır)","Kilogram"]
["13.10.83.20.00","İplikler, suni elyaflarla karışık, ağırlığına göre devamsız polyester elyaf içeriği < % 85 olanlar (dikiş ipliği hariç) (perakende satışa hazır olmayan)","Kilogram"]
["13.10.83.33.00","İplikler, kardelenmiş yün veya ince hayvan kılıyla karışık, ağırlığına göre sentetik devamsız elyaf içeriği < % 85 olanlar (dikiş ipliği hariç) (perakende satışa hazır olmayan)","Kilogram"]
["13.10.83.36.00","İplikler, taranmış yün veya ince hayvan kılıyla karışık, ağırlığına göre sentetik devamsız elyaf içeriği < % 85 olanlar (perakende satışa hazır olmayan)","Kilogram"]
["13.10.83.40.00","İplikler, pamukla karışık, ağırlığına göre sentetik devamsız elyaf içeriği < % 85 olanlar (dikiş ipliği hariç) (perakende satışa hazır olmayan)","Kilogram"]
["13.10.83.80.00","Başka yerde sınıflandırılmamış diğer iplikler, ağırlığına göre sentetik devamsız elyaf içeriği < % 85 olanlar (dikiş ipliği hariç) (perakende satışa hazır olmayan)","Kilogram"]
["13.10.83.90.00","İplikler, ağırlığına göre sentetik devamsız elyaf içeriği < % 85 olanlar (dikiş ipliği hariç) (perakende satışa hazır)","Kilogram"]
["13.10.84.10.00","Suni devamsız elyaftan iplikler (dikiş ipliği hariç) (perakende satışa hazır olmayan)","Kilogram"]
["13.10.84.30.00","Suni devamsız elyaftan iplikler (dikiş ipliği hariç) (perakende satışa hazır)","Kilogram"]
["13.10.85.10.00","Suni ve sentetik filamentlerden dikiş iplikleri","Kilogram"]
["13.10.85.50.00","Suni ve sentetik devamsız elyaflardan dikiş iplikleri","Kilogram"]
["13.10.92.00.00","Taraklama aşamasından kalan döküntüler ve diğer pamuk atıkları","Kilogram"]
["13.20.11.00.00","İpekten veya ipek döküntülerinden dokuma kumaşlar","Metrekare"]
["13.20.12.30.00","Dokuma kumaşlar (kardelenmiş yünden veya kardelenmiş ince hayvan kılından)","Metrekare"]
["13.20.12.60.00","Dokuma kumaşlar (taranmış yünden, taranmış ince hayvan kılından veya kaba hayvan kılından)","Metrekare"]
["13.20.13.30.00","Dokuma kumaşlar, ketenden, ağırlığına göre keten içeriği ≥ %85 olanlar","Metrekare"]
["13.20.13.60.00","Dokuma kumaşlar, ketenden, ağırlığına göre keten içeriği < %85 olanlar","Metrekare"]
["13.20.14.00.00","Dokuma kumaşlar, jüt veya diğer tekstil bitki kabuğu elyaflarından (keten, saf kenevir ve rami hariç)","Metrekare"]
["13.20.19.00.00","Dokuma kumaşlar, saf kenevir, rami veya diğer bitkisel tekstil elyaflarından (keten, jüt, diğer bitki kabuğu elyafları hariç) veya kağıt ipliğinden","Metrekare"]
["13.20.20.14.00","Dokuma kumaşlar, pamuktan (giysiler için, tek renk ipliklerden, ağırlığı ≤ 200 g/m² olanlar)","Metrekare"]
["13.20.20.17.00","Dokuma kumaşlar, pamuktan (ev tekstil ürünleri veya döşemelik tekstil için, tek renk ipliklerden, ağırlığı ≤ 200 g/m² olanlar)","Metrekare"]
["13.20.20.19.00","Dokuma kumaşlar, pamuktan (teknik veya endüstriyel kullanım için (tıbbi gazlı bez, sargı bezi hariç), tek renk ipliklerden, ağırlığı ≤ 200 g/m² olanlar)","Metrekare"]
["13.20.20.20.00","Dokuma kumaşlar, pamuktan (tıbbi gazlı bez, bandaj ve sargılar için, ağırlığı ≤ 100 g/m² olanlar)","Metrekare"]
["13.20.20.31.00","Dokuma kumaşlar, pamuktan (gömlek ve bluzlar için, farklı renk ipliklerden, ağırlığı ≤ 200 gr/m² olanlar)","Metrekare"]
["13.20.20.42.00","Dokuma kumaşlar, pamuktan (giysiler için, tek renk ipliklerden, ağırlığı > 200 gr/m² olanlar)","Metrekare"]
["13.20.20.44.00","Dokuma kumaşlar, pamuktan (ev tekstil ürünleri veya döşemelik tekstil için, tek renk ipliklerden, ağırlığı > 200 gr/m² olanlar)","Metrekare"]
["13.20.20.49.00","Dokuma kumaşlar, pamuktan (teknik veya endüstriyel kullanım için, tek renk ipliklerden, ağırlığı > 200 gr/m² olanlar)","Metrekare"]
["13.20.20.60.01","Dokuma kumaşlar, pamuktan (kot için (mavi dışındaki kotlar dahil), ağırlığı > 200 gr/m², pamuk oranı >= % 85 olanlar)","Metrekare"]
["13.20.20.60.02","Dokuma kumaşlar, pamuktan (kot için (mavi dışındaki kotlar dahil), ağırlığı > 200 gr/m², pamuk oranı < % 85 olanlar)","Metrekare"]
["13.20.20.72.00","Dokuma kumaşlar, pamuktan (diğer giyim eşyaları için, farklı renk ipliklerden)","Metrekare"]
["13.20.20.74.00","Dokuma kumaşlar, pamuktan (ev tekstil ürünleri veya döşemelik tekstil için, farklı renk ipliklerden)","Metrekare"]
["13.20.20.79.00","Dokuma kumaşlar, pamuktan (teknik veya endüstriyel kullanım için, farklı renk ipliklerden)","Metrekare"]
["13.20.31.30.00","Dokuma kumaşlar, yüksek dayanırlıkta iplik, şerit veya benzerlerinden elde edilen suni ve sentetik filament ipliklerden (naylon, diğer poliamidler, polyester, suni ipekli kumaşlar dahil)","Metrekare"]
["13.20.31.50.00","Dokuma kumaşlar, sentetik filament ipliklerden (yüksek dayanırlıkta iplik, şerit vb.den elde edilen sentetik filament ipliklerden olanlar hariç)","Metrekare"]
["13.20.31.70.00","Dokuma kumaşlar, suni filament ipliklerden (yüksek dayanırlıkta ipliklerden elde edilen suni filament ipliklerden olanlar hariç)","Metrekare"]
["13.20.32.10.00","Dokuma kumaşlar, sentetik devamsız elyaftan (ağırlığına göre sentetik devamsız elyaf içeriği ≥ % 85 olanlar)","Metrekare"]
["13.20.32.20.00","Dokuma kumaşlar, sadece veya ağırlıklı olarak pamuk karışımlı sentetik devamsız elyaftan (ağırlığına göre söz konusu elyaf içeriği < % 85 olanlar) (farklı renk ipliklerden olanlar hariç)","Metrekare"]
["13.20.32.30.00","Dokuma kumaşlar, sadece veya ağırlıklı olarak pamuk karışımlı sentetik devamsız elyaftan (ağırlığına göre söz konusu elyaf içeriği < % 85 olanlar) (farklı renk ipliklerden)","Metrekare"]
["13.20.32.40.00","Dokuma kumaşlar, sadece veya ağırlıklı olarak kardelenmiş yün ya da ince hayvan kılı karışımlı sentetik devamsız elyaftan","Metrekare"]
["13.20.32.50.00","Dokuma kumaşlar, sadece veya ağırlıklı olarak taranmış yün ya da ince hayvan kılı karışımlı sentetik devamsız elyaftan","Metrekare"]
["13.20.32.90.01","Devamsız poliester+viskoz ipeği liflerinden dokumalar","Metrekare"]
["13.20.32.90.02","Devamsız poliester, suni, sentetik karışımı dokumalar","Metrekare"]
["13.20.32.90.03","Diğer devamsız poliester karışımlı dokumalar","Metrekare"]
["13.20.32.90.04","Devamsız akrilik/modakrilik+sentetik/suni karışımı dokumalar","Metrekare"]
["13.20.32.90.05","Devamsız diğer akrilik/modakrilikli karışımlardan dokumalar","Metrekare"]
["13.20.32.90.06","Devamsız sentetik - suni karışımı dokumalar","Metrekare"]
["13.20.32.90.07","Devamsız sentetik elyafın diğer karışımları ile dokumalar","Metrekare"]
["13.20.33.30.00","Dokuma kumaşlar, suni devamsız elyaftan (farklı renk ipliklerden olanlar hariç)","Metrekare"]
["13.20.33.50.00","Dokuma kumaşlar, suni devamsız elyaftan (farklı renk ipliklerden)","Metrekare"]
["13.20.41.00.01","Dokunmuş tırtıl mensucat","Metrekare"]
["13.20.41.00.02","Dokunmuş mensucat (suni liften, çözgü iplikli veya atkı iplikli kadife ve pelüş)","Metrekare"]
["13.20.41.00.03","Dokunmuş mensucat (pamuklu, iplikli veya atkı iplikli kadife ve pelüş)","Metrekare"]
["13.20.41.00.04","Dokunmuş mensucat (ketenden)","Metrekare"]
["13.20.41.00.99","Diğer - çözgü ve atkı kadife kumaşlar; şönil kumaşlar (pamuktan havlu cinsi bukleli kumaşlar, tafte edilmiş tekstil kumaşları, dar dokunmuş kumaşlar hariç)","Metrekare"]
["13.20.42.00.00","Havlu ve benzeri ilmeği kesilmemiş dokuma kumaşlar, pamuktan olanlar","Metrekare"]
["13.20.43.00.00","Diğer havlu kumaşlar ve benzeri ilmeği kesilmemiş dokuma kumaşlar (pamuktan olanlar hariç)","Metrekare"]
["13.20.44.00.00","Gazlı dokumalar (tülbent, şile bezi gibi seyrek dokumalar) (tıbbi gazlı bez, dar dokuma kumaşlar hariç)","Metrekare"]
["13.20.45.00.00","Tafting (püsküllü) dokuma kumaşlar (tafting halılar ve diğer tekstil yer kaplamaları hariç)","Metrekare"]
["13.20.46.00.00","Dokuma kumaşlar, cam elyafından (dar kumaşlar, cam yünü dahil)","Kilogram"]
["13.30.11.10.00","Elyafların boyanması","Türk Lirası"]
["13.30.11.21.00","İpek ipliklerin boyanması","Türk Lirası"]
["13.30.11.22.00","Yünden, ince veya kaba hayvan kılından ve at kılından ipliklerin boyanması","Türk Lirası"]
["13.30.11.23.00","Pamuk ipliklerin boyanması (dikiş iplikleri hariç)","Türk Lirası"]
["13.30.11.24.00","Keten, jüt, diğer tekstil bitki kabuğu liflerinin, bitkisel tekstil elyafının ve kağıt ipliklerinin boyanması","Türk Lirası"]
["13.30.11.25.00","Sentetik filament ipliklerinin boyanması (dikiş ipliği hariç)","Türk Lirası"]
["13.30.11.26.00","Suni filament ipliklerinin boyanması (dikiş ipliği hariç)","Türk Lirası"]
["13.30.11.27.00","Sentetik devamsız elyaf ipliğinin boyanması (dikiş ipliği hariç)","Türk Lirası"]
["13.30.11.28.00","Suni devamsız elyaf ipliğinin boyanması (dikiş ipliği hariç)","Türk Lirası"]
["13.30.12.10.00","İpek dokuma kumaşların ağartılması","Türk Lirası"]
["13.30.12.20.00","Yün, ince veya kaba hayvan kılı veya at kılı dokuma kumaşların ağartılması","Türk Lirası"]
["13.30.12.30.00","Pamuklu dokuma kumaşların ağartılması","Türk Lirası"]
["13.30.12.40.00","Keten, jüt, diğer tekstil bitki kabuğu elyaflarından, bitkisel tekstil elyafından ve kağıt ipliklerinden yapılmış dokuma kumaşların ağartılması","Türk Lirası"]
["13.30.12.50.00","Sentetik filament ipliklerinden veya sentetik elyaftan yapılan dokuma kumaşların ağartılması","Türk Lirası"]
["13.30.12.60.00","Suni filament ipliklerinden veya suni elyaftan yapılan dokuma kumaşların ağartılması","Türk Lirası"]
["13.30.12.70.00","Dokuma havlı kumaşların ve şönil kumaşların ağartılması (pamuklu havlu ve benzeri ilmeği kesilmemiş dokuma kumaşlar ile dar dokuma kumaşlar hariç)","Türk Lirası"]
["13.30.12.80.00","Havlu ve benzeri ilmeği kesilmemiş dokuma kumaşların ağartılması (tafting (püsküllü) dokuma kumaşlar hariç)","Türk Lirası"]
["13.30.12.90.00","Örgü (triko) veya tığ işi (kroşe) kumaşların ağartılması","Türk Lirası"]
["13.30.13.10.00","İpek veya ipek döküntüsünden dokuma kumaşların boyanması","Türk Lirası"]
["13.30.13.20.00","Yünden, ince/kaba hayvan kılından veya at kılından dokuma kumaşların boyanması","Türk Lirası"]
["13.30.13.30.00","Pamuklu dokuma kumaşların boyanması","Türk Lirası"]
["13.30.13.40.00","Keten, jüt, diğer tekstil bitki kabuğu elyaflarından, bitkisel tekstil elyafından ve kağıt ipliklerinden yapılmış dokuma kumaşların boyanması","Türk Lirası"]
["13.30.13.50.00","Sentetik filament ipliklerinden veya sentetik elyaftan yapılmış dokuma kumaşların boyanması","Türk Lirası"]
["13.30.13.60.00","Suni filament ipliklerinden veya suni elyaftan yapılmış dokuma kumaşların boyanması","Türk Lirası"]
["13.30.13.70.00","Dokuma havlı kumaşların ve şönil kumaşların boyanması (pamuklu havlu ve benzeri ilmeği kesilmemiş dokuma kumaşlar ile dar dokuma kumaşlar hariç)","Türk Lirası"]
["13.30.13.80.00","Havlu ve benzeri ilmeği kesilmemiş dokuma kumaşların boyanması (tafting (püsküllü) dokuma kumaşlar hariç)","Türk Lirası"]
["13.30.13.90.00","Örgü (triko) veya tığ işi (kroşe) kumaşlar ile dokusuz olanların boyanması","Türk Lirası"]
["13.30.19.10.00","İpek dokuma kumaşların bitirilmesi (ağartma, boyama, baskı hariç)","Türk Lirası"]
["13.30.19.20.00","Yünden, ince/kaba hayvan kılından veya at kılından dokuma kumaşların bitirilmesi (ağartma, boyama, baskı hariç)","Türk Lirası"]
["13.30.19.30.00","Pamuklu dokuma kumaşların bitirilmesi(ağartma, boyama, baskı hariç)","Türk Lirası"]
["13.30.19.40.00","Keten, jüt, diğer tekstil bitki kabuğu elyaflarından, bitkisel tekstil elyafından ve kağıt ipliklerinden yapılmış dokuma kumaşların bitirilmesi (ağartma, boyama, baskı hariç)","Türk Lirası"]
["13.30.19.50.00","Sentetik filament ipliklerden veya sentetik elyaftan yapılmış dokuma kumaşların bitirilmesi (ağartma, boyama, baskı hariç)","Türk Lirası"]
["13.30.19.60.00","Suni filament ipliklerden veya suni elyaftan yapılmış dokuma kumaşların bitirilmesi (ağartma, boyama, baskı hariç)","Türk Lirası"]
["13.30.19.70.00","Dokuma havlı kumaşların ve şönil kumaşların bitirilmesi, (ağartma, boyama, baskı hariç), (pamuklu havlu ve benzeri ilmeği kesilmemiş dokuma kumaşlar ile dar dokuma kumaşlar hariç)","Türk Lirası"]
["13.30.19.80.00","Havlu ve benzeri ilmeği kesilmemiş dokuma kumaşların (tafting (püsküllü) dokuma kumaşlar hariç) bitirilmesi (ağartma, boyama, baskı hariç)","Türk Lirası"]
["13.30.19.90.00","Örgü (triko) veya tığ işi (kroşe) kumaşların ve dokusuz olanların bitirilmesi (ağartma, boyama, baskı hariç)","Türk Lirası"]
["13.30.19.95.00","Giyim eşyalarının bitirilmesi hizmetleri","Türk Lirası"]
["13.91.11.00.00","Havlı kumaşlar (tüylendirilmiş kumaşlar gibi), ilmekli kumaşlar (örgü (triko) veya tığ işi (kroşe) olanlar)","Kilogram"]
["13.91.19.10.00","Örgü (triko) veya tığ işi (kroşe) kumaşlar (havlı kumaşlar hariç)","Kilogram"]
["13.91.19.20.00","Suni kürk ve bundan yapılmış eşyalar","Türk Lirası"]
["13.92.11.30.00","Battaniyeler ve seyahat battaniyeleri, yün veya ince hayvan kılından (elektrikli battaniyeler hariç)","Adet sayısı"]
["13.92.11.50.00","Battaniyeler ve seyahat battaniyeleri, sentetik elyaftan (elektrikli battaniyeler hariç)","Adet sayısı"]
["13.92.11.90.00","Battaniyeler ve seyahat battaniyeleri, tekstil malzemelerinden (elektrikli battaniyeler; yünden, ince hayvan kılından ve sentetik elyaftan olanlar hariç)","Adet sayısı"]
["13.92.12.30.00","Yatak takımları, çarşafları ve yastık kılıfları, örgü (triko) veya tığ işi (kroşe) tekstilden","Kilogram"]
["13.92.12.53.01","Yastık kılıfları, pamuktan (örgü (triko) veya tığ işi (kroşe) hariç)","Kilogram"]
["13.92.12.53.02","Yatak takımları, pamuktan (örgü (triko) veya tığ işi (kroşe) hariç)","Kilogram"]
["13.92.12.53.03","Yatak çarşafları, pamuktan (örgü (triko) veya tığ işi (kroşe) hariç)","Kilogram"]
["13.92.12.55.00","Yatak takımları, çarşafları ve yastık kılıfları, keten veya ramiden (örgü (triko) veya tığ işi (kroşe) hariç)","Kilogram"]
["13.92.12.59.00","Yatak takımları, çarşafları ve yastık kılıfları, dokuma tekstilden (pamuk, keten veya ramiden olanlar hariç)","Kilogram"]
["13.92.12.70.00","Yatak takımları, çarşafları ve yastık kılıfları, dokusuz suni ve sentetik elyaftan (örgü (triko) veya tığ işi (kroşe) hariç)","Kilogram"]
["13.92.13.30.00","Masa örtüsü, örgü (triko) veya tığ işi (kroşe) tekstilden","Kilogram"]
["13.92.13.53.00","Masa örtüsü, pamuktan (örgü (triko) veya tığ işi (kroşe) hariç)","Kilogram"]
["13.92.13.55.00","Masa örtüsü, ketenden (örgü (triko) veya tığ işi (kroşe) hariç)","Kilogram"]
["13.92.13.59.00","Masa örtüsü, suni ve sentetik elyaftan ve diğer dokuma veya dokusuz tekstilden (pamuktan veya ketenden olanlar hariç)","Kilogram"]
["13.92.13.70.00","Masa örtüsü, dokusuz suni ve sentetik elyaftan","Kilogram"]
["13.92.14.30.00","Tuvalet ve mutfakta kullanılan örtüler, pamuklu havlu ve benzeri ilmeği kesilmemiş dokumadan","Kilogram"]
["13.92.14.50.00","Tuvalet ve mutfakta kullanılan örtüler, dokuma kumaştan (pamuklu havlu ve benzeri ilmeği kesilmemiş dokuma kumaştan olanlar hariç)","Kilogram"]
["13.92.14.70.00","Tuvalet ve mutfakta kullanılan örtüler, dokusuz suni ve sentetik elyaftan","Kilogram"]
["13.92.15.30.00","Perdeler ve iç storlar, perde veya yatak saçakları ve farbelaları (örgü (triko) veya tığ işi (kroşe) malzemelerden)","Metrekare"]
["13.92.15.50.00","Perdeler ve iç storlar, perde veya yatak saçakları ve farbelaları (dokuma malzemelerden)","Metrekare"]
["13.92.15.70.00","Perdeler ve iç storlar, perde veya yatak saçakları ve farbelaları (dokusuz malzemelerden)","Metrekare"]
["13.92.16.20.00","Duvar halısı, el dokuması (Goblen, flander, aubusson, beauvais tipinde) ve iğne işi (kanaviçe, çapraz dikiş dahil)","Türk Lirası"]
["13.92.16.40.00","Yatak örtüleri (kuştüyü yorgan hariç)","Adet sayısı"]
["13.92.16.60.00","Mefruşat ürünleri, mobilya ve minder kaplamaları ile araba koltuklarını kaplamak için olanlar (battaniye, seyahat battaniyesi, yatak takımı, çarşaf vb., yemek takımı, masa örtüsü, peçete vb., tuvalet takımları, mutfak takımları, perde, panjur, fela ve yatak örtüleri ve saçakları hariç)","Türk Lirası"]
["13.92.16.80.00","İşlemeye hazır dokuma kumaş ve iplik setleri (halı, duvar halısı, nakışlı masa örtüsü, peçete vb. tekstil ürünleri yapımı için) (perakende satışa hazır).","Türk Lirası"]
["13.92.21.30.00","Çuval, torba, çanta ve benzerleri (eşya paketleme amacıyla kullanılanlar), pamuktan olanlar","Kilogram"]
["13.92.21.50.00","Çuval, torba, çanta ve benzerleri (eşya paketleme amacıyla kullanılanlar), polietilen veya polipropilen şeritlerden örgü (triko) veya tığ işi (kroşe) olanlar","Kilogram"]
["13.92.21.70.00","Çuval, torba, çanta ve benzerleri (eşya paketleme amacıyla kullanılanlar), polietilen veya polipropilen şeritten (örgü (triko) veya tığ işi (kroşe) hariç)","Kilogram"]
["13.92.21.90.00","Çuval, torba, çanta ve benzerleri (eşya paketleme amacıyla kullanılanlar), (pamuk, polietilen veya polipropilenden olanlar hariç)","Kilogram"]
["13.92.22.10.00","Brandalar, güneşlikler ve storlar (karavan tentesi hariç)","Kilogram"]
["13.92.22.30.00","Çadırlar (karavan tentesi dahil)","Kilogram"]
["13.92.22.50.00","Yelkenler","Kilogram"]
["13.92.22.70.00","Şişme yataklar ve diğer kamp eşyaları (karavan tentesi, çadır ve uyku tulumu hariç)","Kilogram"]
["13.92.23.00.00","Paraşütler (yönlendirilebilen paraşütler dahil), rotoşütler, bunların aksam ve parçaları","Kilogram"]
["13.92.24.93.00","Kuş tüyü veya gıdık tüyü (ince kuş tüyü) ile doldurulmuş uyku takımları (yorgan, kuş tüyü yorgan, minder, puf, yastık dahil (şilte ve uyku tulumu hariç))","Adet sayısı"]
["13.92.24.99.00","Doldurulmuş uyku takımları (yorgan, kuş tüyü yorgan, minder, puf, yastık dahil (kuş tüyü veya gıdık tüyü (ince kuş tüyü) ile doldurulanlar ile şilte ve uyku tulumu hariç))","Adet sayısı"]
["13.92.29.53.00","Yer bezi, bulaşık bezi, toz bezi vb. temizlik bezleri (dokusuz tekstilden)","Kilogram"]
["13.92.29.57.00","Yer bezi, bulaşık bezi, toz bezi vb. temizlik bezleri (dokusuz tekstilden olanlar ile örgü (triko) veya tığ işi (kroşe) olanlar hariç)","Kilogram"]
["13.92.29.93.00","Kadın pedleri, tamponlar ve benzeri eşyalar, tekstil malzemelerinden (vatkadan olanlar hariç)","Kilogram"]
["13.92.29.97.00","Bebekler için pedler ve bebek bezleri ile benzeri eşyalar, tekstil malzemelerinden (vatkadan olanlar hariç)","Kilogram"]
["13.92.29.99.00","Yer bezi, bulaşık bezi, toz bezi vb. temizlik bezleri (örgü (triko) veya tığ işi (kroşe) olanlar); can yeleği, can simidi ve diğer hazır eşyalar (kadın pedleri, çocuk bezleri vb. ürünler hariç)","Kilogram"]
["13.93.11.00.01","El halıları, ipekten (düğümlü olanlar)","Metrekare"]
["13.93.11.00.02","El halıları, floştan (düğümlü olanlar)","Metrekare"]
["13.93.11.00.03","El halıları, yünden (düğümlü olanlar)","Metrekare"]
["13.93.11.00.04","Makine halıları (düğümlü olanlar)","Metrekare"]
["13.93.11.00.91","Diğer tekstil yer döşemeleri (düğümlü olanlar)","Metrekare"]
["13.93.11.00.99","Diğer tekstil malzemelerinden halılar (düğümlü olanlar) (ipek ve yün olanlar ile makine yapımı olanlar hariç)","Metrekare"]
["13.93.12.00.00","Halı ve diğer tekstil yer döşemeleri, dokuma (tafting (püsküllü ) veya floklu (tüylü) olanlar hariç)","Metrekare"]
["13.93.13.00.01","Halı ve diğer tekstil yer döşemeleri (yün/ince kıldan, tafting (püsküllü))","Metrekare"]
["13.93.13.00.02","Halı ve diğer tekstil yer döşemeleri (naylon/diğer poliamidlerden, baskılı, yüzeyi 1 m2'ye eşit veya küçük karo, tafting (püsküllü))","Metrekare"]
["13.93.13.00.03","Halı ve diğer tekstil yer döşemeleri (naylon/diğer poliamidlerden, baskılı, yüzeyi 1m2'den büyük, tafting (püsküllü))","Metrekare"]
["13.93.13.00.04","Halı ve diğer tekstil yer döşemeleri (naylon/diğer poliamidlerden, baskısız, yüzeyi 1 m2'ye eşit veya küçük karo, tafting (püsküllü))","Metrekare"]
["13.93.13.00.05","Halı ve diğer tekstil yer döşemeleri (naylon/diğer poliamidlerden, baskısız, yüzeyi 1m2'den büyük, tafting (püsküllü))","Metrekare"]
["13.93.13.00.06","Halı ve diğer tekstil yer döşemeleri (polipropilenden, yüzeyi 1 m2'ye eşit veya küçük karo, tafting (püsküllü))","Metrekare"]
["13.93.13.00.07","Halı ve diğer tekstil yer döşemeleri (polipropilenden, yüzeyi 1'den büyük, tafting (püsküllü))","Metrekare"]
["13.93.13.00.99","Diğer sentetik/suni maddeler ile dokumaya elverişli diğer maddelerden karo ve diğer yer kaplamaları (tafting (püsküllü))","Metrekare"]
["13.93.19.30.00","Keçe halı ve diğer keçe tekstil yer döşemeleri (tafting (püsküllü) veya floklu olanlar hariç)","Metrekare"]
["13.93.19.90.01","Flok halılar (püskürtme yoluyla yapılan halılar)","Metrekare"]
["13.93.19.90.02","Paspas ve yolluklar (dokuma, düğümlü, tafting (püsküllü) ve keçeden olanlar hariç)","Metrekare"]
["13.93.19.90.99","Diğer halılar ve diğer tekstil yer kaplamaları (düğümlü, dokuma, tafting (püsküllü), keçeden olanlar hariç)","Metrekare"]
["13.94.11.30.00","Kınnap, halat, urgan veya kordon (Sisal veya Agave cinsi diğer tekstil elyaflarından, jütten veya diğer tekstil bitki kabuğu elyaflarından ve sert yaprak elyaflarından) (bağlama ve balyalama kınnapları hariç)","Kilogram"]
["13.94.11.53.00","Kınnap, sisalden yapılmış, bağlama veya balyalama (tarımsal amaçlı) için","Kilogram"]
["13.94.11.55.00","Kınnap, polietilen veya polipropilenden yapılmış, bağlama veya balyalama (tarımsal amaçlı) için","Kilogram"]
["13.94.11.60.00","Halat, urgan veya kordon (polietilenden, polipropilenden, naylondan veya diğer poliamidlerden ya da polyester içeriği > 50,000 desiteks olanlardan, diğer sentetik elyaflardan yapılmış) (bağlama ve balyalama kınnapları hariç)","Kilogram"]
["13.94.11.70.00","Kınnap, (polietilenden, polipropilenden, naylondan veya diğer poliamidlerden ya da polyester içeriği ≤ 50,000 desiteks (5 g/m) olanlardan yapılmış), (bağlama ve balyalama kınnapları hariç)","Kilogram"]
["13.94.11.90.00","Kınnap, halat, urgan ve kordon, tekstil malzemelerinden (jüt, ve diğer tekstil bitki kabuğu elyaflarından, sisal, abaka (Manila keneviri) veya diğer sert yaprak elyafından, sentetik elyaftan olanlar hariç)","Kilogram"]
["13.94.12.33.00","Hazır balık ağları, suni ve sentetik elyaftan yapılmış kınnap, halat veya urgandan olanlar (balık ağı kepçesi hariç)","Kilogram"]
["13.94.12.35.00","Hazır balık ağları, suni ve sentetik ipliklerden yapılmış (balık ağı kepçesi hariç)","Kilogram"]
["13.94.12.53.00","Hazır ağlar, naylon veya diğer poliamidlerden kınnap, halat veya urgandan yapılmış (kroşe yöntemiyle üretilen parça ağlar, saç filesi, spor ve balık ağları hariç)","Kilogram"]
["13.94.12.55.00","Hazır ağlar, naylon veya diğer poliamidlerden yapılmış (kroşe yöntemiyle üretilen parça ağlar, saç filesi, spor ve balık ağları hariç)","Kilogram"]
["13.94.12.59.00","Düğümlü ağlar, tekstil malzemelerinden (suni ve sentetik tekstilden hazır balık ağları, naylon veya diğer poliamidlerden yapılmış diğer hazır ağlar hariç)","Kilogram"]
["13.94.12.80.00","Kınnap, halat, urgan veya kordondan yapılmış eşyalar","Kilogram"]
["13.95.10.10.00","Dokusuz kumaşlar, ağırlığı ≤ 25 gr/m² olanlar (dokusuz kumaştan yapılmış eşyalar dahil) (giydirilmiş veya kaplanmış giyim eşyaları hariç)","Kilogram"]
["13.95.10.20.00","Dokusuz kumaşlar, ağırlığı > 25 gr/m² fakat ≤ 70 g/m² olanlar (dokusuz kumaştan yapılmış eşyalar dahil) (giydirilmiş veya kaplanmış giyim eşyaları hariç)","Kilogram"]
["13.95.10.30.00","Dokusuz kumaşlar, ağırlığı > 70 gr/m² fakat ≤ 150 g/m² olanlar (dokusuz kumaştan yapılmış eşyalar dahil) (giydirilmiş veya kaplanmış giyim eşyaları hariç)","Kilogram"]
["13.95.10.50.00","Dokusuz kumaşlar, ağırlığı > 150 g/m² olanlar (dokusuz kumaştan yapılmış eşyalar dahil) (giydirilmiş veya kaplanmış giyim eşyaları hariç)","Kilogram"]
["13.95.10.70.00","Dokusuz kumaşlar, giydirilmiş veya kaplanmış (dokusuz kumaştan yapılmış eşyalar dahil) (giyim eşyaları hariç)","Kilogram"]
["13.96.11.00.00","Metalize iplik ya da metalize gipe iplik","Kilogram"]
["13.96.12.00.00","Metal iplikten dokuma kumaşlar ve metalize iplikten dokuma kumaşlar (giyim, döşemelik veya benzeri amaçlar için kullanılanlar)","Kilogram"]
["13.96.13.00.00","Kauçuk iplik veya kordon, tekstil kaplanmış; kauçuk veya plastik emdirilmiş (emprenye edilmiş), kaplanmış veya kauçuk veya plastik kılıflı tekstil iplik ve şeritler","Kilogram"]
["13.96.14.00.00","Başka yerde sınıflandırılmamış tekstil kumaşları (emdirilmiş (emprenye edilmiş), giydirilmiş veya kaplanmış)","Metrekare"]
["13.96.15.00.00","Lastik kord bezi (yüksek dayanırlıkta naylon veya diğer poliamid, polyester veya viskoz ipeği ipliklerinden)","Metrekare"]
["13.96.16.20.00","Tekstilden hortumlar ve benzeri borular, emdirilmiş (emprenye edilmiş) veya kaplanmış olsun veya olmasın (diğer malzemelerden astarı, zırhı veya aksesuarı olsun veya olmasın)","Kilogram"]
["13.96.16.50.00","Tekstilden fitiller, taşıma veya konveyör bantları (metal veya diğer materyallerle güçlendirilmiş olanlar dahil)","Kilogram"]
["13.96.16.80.00","Tekstil kumaş ve keçeler, kağıt yapım makinesi ve benzer makineler (kağıt hamuru veya asbestli çimento için olanlar dahil) için","Kilogram"]
["13.96.17.30.01","Paça ve bel lastikleri, gipe lastik ve lastik bant (tres mamulü)","Türk Lirası"]
["13.96.17.30.02","Kordelalar","Türk Lirası"]
["13.96.17.30.99","Diğer dar dokuma kumaşlar (etiket, arma ve diğer benzer maddeler hariç)","Türk Lirası"]
["13.96.17.50.00","Etiket, arma ve diğer benzeri eşyalar, tekstil malzemelerinden (nakışlılar hariç)","Türk Lirası"]
["13.96.17.70.00","Kordonlar, parça halinde; püskül ve ponpon, dekoratif süsler (örgü (triko) veya tığ işi (kroşe) hariç)","Türk Lirası"]
["13.99.11.30.00","Tüller ve diğer ağ kumaşlar (dokuma, örgü (triko) veya tığ işi (kroşe) hariç)","Türk Lirası"]
["13.99.11.50.00","Danteller, makine yapımı (parça, şerit veya motif şeklinde)","Türk Lirası"]
["13.99.11.70.00","Danteller, el yapımı (parça, şerit veya motif şeklinde)","Türk Lirası"]
["13.99.12.30.00","Nakışlar, zemini gözükmeyen (parça, şerit veya motif şeklinde)","Türk Lirası"]
["13.99.12.50.00","Nakışlar, pamuklu parça, şerit veya motif şeklinde (görünebilir zeminli nakışlar hariç)","Türk Lirası"]
["13.99.12.70.00","Nakışlar, tekstilden (parça, şerit veya motif şeklinde) (zemini gözükmeyenler ile pamuklular hariç)","Türk Lirası"]
["13.99.13.00.00","Başka yerde sınıflandırılmamış keçeler (emdirilmiş (emprenye edilmiş), giydirilmiş, kaplanmış veya lamine edilmiş olsun veya olmasın)","Kilogram"]
["13.99.14.00.00","Tekstilden floklar (tüyler), tozlar, kırpıntı ve döküntüler","Kilogram"]
["13.99.15.00.00","Gipe iplikler, şeritler ve benzerleri, görünür genişliği ≤ 5 mm olan suni ve sentetik tekstil malzemelerinden; şönil iplikler; şenet iplikler","Kilogram"]
["13.99.16.00.00","Kapitone tekstil ürünleri, parça şeklinde (nakışlı hariç)","Metrekare"]
["13.99.19.00.00","Pudra ponponları ve pedleri, kozmetik veya kişisel bakım müstahzarlarının uygulanması için olanlar","Adet sayısı"]
["14.12.11.20.00","Erkekler ve erkek çocuklar için takımlar, pamuktan veya suni ve sentetik elyaftan yapılmış (endüstriyel ve mesleki)"]
["14.12.11.30.00","Erkekler veya erkek çocukları için ceket ve blazerler, pamuktan veya suni ve sentetik elyaftan yapılmış (endüstriyel ve mesleki)"]
["14.12.12.40.00","Erkekler veya erkek çocukları için pantolonlar ve binici/külot pantolonları (kısa pantolon dahil), pamuktan veya suni ve sentetik elyaftan yapılmış (endüstriyel ve mesleki)"]
["14.12.12.50.00","Erkekler veya erkek çocukları için bahçıvan tipi iş tulumları, pamuktan veya suni ve sentetik elyaftan yapılmış (endüstriyel ve mesleki)"]
["14.12.21.20.00","Kadınlar veya kız çocukları için takımlar, pamuktan veya suni ve sentetik elyaftan yapılmış (endüstriyel ve mesleki)"]
["14.12.21.30.00","Kadınlar veya kız çocukları için ceket ve blazerler, pamuktan veya suni ve sentetik elyaftan yapılmış (endüstriyel ve mesleki)"]
["14.12.22.40.00","Kadınlar veya kız çocukları için pantolonlar ve binici/külot pantolonları (kısa pantolon dahil), pamuktan veya suni ve sentetik elyaftan yapılmış (endüstriyel ve mesleki)"]
["14.12.22.50.00","Kadınlar veya kız çocukları için bahçıvan tipi iş tulumları, pamuktan veya suni ve sentetik elyaftan yapılmış (endüstriyel ve mesleki)"]
["14.12.30.13.01","Erkek/erkek çocuk için mesleki kıyafet; pamuktan"]
["14.12.30.13.02","Erkek/erkek çocuk için mesleki kıyafet; sentetik/suni elyaftan"]
["14.12.30.23.01","Kadın ve kız çocukları için sentetik ve suni liflerden yapılmış mesleki önlükler, gömlekler ve diğer mesleki kıyafetler"]
["14.12.30.23.02","Kadın ve kız çocukları için pamuktan yapılmış mesleki önlükler, gömlekler ve diğer mesleki kıyafetler"]
["14.13.11.10.00","Erkekler veya erkek çocukları için palto, kaban, harmani, pelerin ve benzeri ürünler (örgü (triko) veya tığ işi (kroşe) tekstilden) (ceket ve blazerler, anorak ve rüzgarlıklar hariç)"]
["14.13.11.20.00","Erkekler veya erkek çocukları için yelek, anorak, kayak montu, rüzgarlık ve benzeri ürünler (örgü (triko) veya tığ işi (kroşe) tekstilden) (ceket ve blazerler hariç)"]
["14.13.12.30.00","Erkekler veya erkek çocukları için ceket ve blazerler (örgü (triko) veya tığ işi (kroşe) tekstilden)"]
["14.13.12.60.00","Erkekler veya erkek çocukları için takım ve kombine takımlar (örgü (triko) veya tığ işi (kroşe) tekstilden)"]
["14.13.12.70.01","Erkek ve erkek çocukları için pantolonlar (örgü (triko) veya tığ işi (kroşe) tekstilden)"]
["14.13.12.70.99","Diğer, erkeklerin veya erkek çocukların bahçıvan tipi tulum, binici/külot pantolonu (kısa pantolon dahil) ve şortları (örgü (triko) veya tığ işi (kroşe) tekstilden)"]
["14.13.13.10.00","Kadınlar veya kız çocukları için palto, kaban, harmani, pelerin ve benzeri ürünler (örgü (triko) veya tığ işi (kroşe) tekstilden) (ceket ve blazerler hariç)"]
["14.13.13.20.00","Kadınlar veya kız çocukları için yelek, anorak, kayak montu, rüzgarlık ve benzeri ürünler (örgü (triko) veya tığ işi (kroşe) tekstilden) (ceket ve blazerler hariç)"]
["14.13.14.30.00","Kadınlar veya kız çocukları için ceket ve blazerler (örgü (triko) veya tığ işi (kroşe) tekstilden)"]
["14.13.14.60.01","Kadın ve kız çocukları için takımlar, pamuktan (örgü (triko) veya tığ işi (kroşe) tekstilden)"]
["14.13.14.60.02","Kadın ve kız çocukları için takımlar, sentetik liften (örgü (triko) veya tığ işi (kroşe) tekstilden)"]
["14.13.14.60.99","Kadın ve kız çocukları için takımlar, yünden veya ince hayvan kıllarından ve dokumaya elverişli diğer maddelerden (örgü (triko) veya tığ işi (kroşe) tekstilden)"]
["14.13.14.70.00","Kadınlar veya kız çocukları için elbiseler (örgü (triko) veya tığ işi (kroşe) tekstilden)"]
["14.13.14.80.00","Kadınlar veya kız çocukları için etek ve pantolon etekler (örgü (triko) veya tığ işi (kroşe) tekstilden)"]
["14.13.14.90.01","Kadın ve kız çocukları için pantolon, binici/külot pantolonu (kısa pantolon dahil), askılı ve üst ön parçası olan tulumlar ve şortlar, pamuktan (örgü (triko) veya tığ işi (kroşe) tekstilden)"]
["14.13.14.90.99","Kadın ve kız çocukları için diğer pantolon, binici/külot pantolonu (kısa pantolon dahil), askılı ve üst ön parçası olan tulumlar ve şortlar, yünden veya ince hayvan kıllarından, sentetik ve suni liflerden ve dokunabilir diğer maddelerden (örgü (triko) veya tığ işi (kroşe) tekstilden)"]
["14.13.21.15.00","Erkekler veya erkek çocukları için yağmurluklar, paltolar, kabanlar, pelerinler, vb."]
["14.13.21.30.00","Erkekler veya erkek çocukları için yelek, anorak, kayak montları, rüzgarlıklar ve benzeri eşyalar (örgü (triko) veya tığ işi (kroşe), emdirilmiş (emprenye edilmiş), giydirilmiş, kaplanmış, lamine edilmiş veya su geçirmez hale getirilmiş olanlar ile ceket ve blazerler hariç)"]
["14.13.22.00.00","Erkekler veya erkek çocukları için takım elbiseler veya giysi kombinleri (örgü (triko) veya tığ işi (kroşe) hariç)"]
["14.13.23.00.00","Erkekler veya erkek çocukları için ceket ve blazerler (örgü (triko) veya tığ işi (kroşe) hariç)"]
["14.13.24.42.01","Erkek/erkek çocuk için uzun pantolon; denimden"]
["14.13.24.42.02","Erkekler veya erkek çocukları için binici/külot pantolonu (kısa pantolon dahil), denimden"]
["14.13.24.44.00","Erkekler veya erkek çocukları için pantolon, binici/külot pantolonu (kısa pantolon dahil) ve şortlar, yün veya ince hayvan kılından yapılmış (örgü (triko) veya tığ işi (kroşe) olanlar ile endüstriyel veya mesleki kıyafetler hariç)"]
["14.13.24.45.00","Erkekler veya erkek çocukları için pantolon ve binici/külot pantolonu (kısa pantolon dahil), suni veya sentetik elyaftan yapılmış (örgü (triko) veya tığ işi (kroşe) olanlar ile endüstriyel veya mesleki kıyafetler hariç)"]
["14.13.24.48.01","Erkekler veya erkek çocukları için pantolon ve binici/külot pantolonu (kısa pantolon dahil); atkı iplikli kadife ve pelüşten olanlar (kot kumaşından olanlar ile örgü (triko) veya tığ işi (kroşe) hariç)"]
["14.13.24.48.02","Erkekler veya erkek çocukları için pantolon ve binici/külot pantolonu (kısa pantolon dahil); pamuktan olanlar (kot kumaşından olanlar ile örgü (triko) veya tığ işi (kroşe) hariç)"]
["14.13.24.49.00","Erkekler veya erkek çocukları için pantolon, binici/külot pantolonu (kısa pantolon dahil), şort, bahçıvan tipi tulumlar (yünden, pamuktan ve suni veya sentetik elyaftan olanlar ile örgü (triko) veya tığ işi (kroşe) hariç)"]
["14.13.24.55.01","Erkek ve erkek çocukları için askılı ve üst ön parçalı tulumlar, pamuktan (örgü (triko) veya tığ işi (kroşe) olanlar ile endüstriyel veya mesleki kıyafetler hariç)"]
["14.13.24.55.02","Erkek ve erkek çocukları için diğer askılı ve üst ön parçalı tulumlar, yünden veya ince hayvan kıllarından, sentetik veya suni liflerden ve dokumaya elverişli diğer maddelerden (örgü (triko) veya tığ işi (kroşe) olanlar ile endüstriyel veya mesleki kıyafetler hariç)"]
["14.13.24.60.00","Erkekler veya erkek çocukları için şortlar, pamuk veya suni veya sentetik elyaftan yapılmış (örgü (triko) veya tığ işi (kroşe) hariç)"]
["14.13.31.15.00","Kadınlar veya kız çocukları için yağmurluklar ve paltolar, vb."]
["14.13.31.30.00","Kadınlar veya kız çocukları için yelek, anorak, kayak ceketi, rüzgarlık ve benzeri eşyalar (örgü (triko) veya tığ işi (kroşe), emdirilmiş (emprenye edilmiş), giydirilmiş, kaplanmış, lamine edilmiş veya su geçirmez hale getirilmiş olanlar ile ceket ve blazerler hariç)"]
["14.13.32.00.00","Kadınlar veya kız çocukları için takım elbiseler veya giysi kombinleri (örgü (triko) veya tığ işi (kroşe) hariç)"]
["14.13.33.30.00","Kadınlar veya kız çocukları için ceket ve blazerler (örgü (triko) veya tığ işi (kroşe) hariç)"]
["14.13.34.70.00","Kadınlar veya kız çocukları için elbiseler (kot elbiseler dahil) (örgü (triko) veya tığ işi (kroşe) hariç)"]
["14.13.34.80.01","Kadın/kız çocuk için etek ve pantolon etek, yün/ince kıldan (örgü (triko) veya tığ işi (kroşe) hariç)"]
["14.13.34.80.02","Kadın/kız çocuk için etek ve pantolon etek, pamuktan (örgü (triko) veya tığ işi (kroşe) hariç)"]
["14.13.34.80.03","Kadın/kız çocuk için etek ve pantolon etek, sentetik lifden (örgü (triko) veya tığ işi (kroşe) hariç)"]
["14.13.34.80.04","Kadın/kız çocuk için etek ve pantolon etek, suni lifden (örgü (triko) veya tığ işi (kroşe) hariç)"]
["14.13.34.80.99","Kadın/kız çocuk için etek ve pantolon etek, dokumaya elverişli diğer maddeler (örgü (triko) veya tığ işi (kroşe) hariç)"]
["14.13.35.42.00","Kadınlar veya kız çocukları için pantolon ve binici/külot pantolonu (kısa pantolon dahil), kot kumaştan yapılmış (endüstriyel veya mesleki kıyafetler hariç)"]
["14.13.35.48.01","Kadın veya kız çocukları için pantolon ve binici/külot pantolonu (kısa pantolon dahil), golf pantolonları, şort vs., atkı ipliklerinden kadifeden (kot kumaştan yapılmış olanlar ile endüstriyel veya mesleki kıyafetler hariç)"]
["14.13.35.48.02","Kadın veya kız çocukları için pantolon ve binici/külot pantolonu (kısa pantolon dahil), golf pantolonları, şort vs., pamuktan ve diğer dokunabilir maddelerden (kot kumaştan yapılmış olanlar ile endüstriyel veya mesleki kıyafetler hariç)"]
["14.13.35.49.01","Kadınlar veya kız çocukları için pantolon ve binici/külot pantolonu (kısa pantolon dahil), yün/ince kıldan (örgü (triko) veya tığ işi (kroşe) olanlar ile endüstriyel veya mesleki kıyafetler hariç)"]
["14.13.35.49.02","Kadınlar veya kız çocukları için pantolon ve binici/külot pantolonu (kısa pantolon dahil), sentetik lifden (örgü (triko) veya tığ işi (kroşe) olanlar ile endüstriyel veya mesleki kıyafetler hariç)"]
["14.13.35.49.03","Kadınlar veya kız çocukları için pantolon ve binici/külot pantolonu (kısa pantolon dahil), suni lifden (örgü (triko) veya tığ işi (kroşe) olanlar ile endüstriyel veya mesleki kıyafetler hariç)"]
["14.13.35.51.00","Kadınlar veya kız çocukları için bahçıvan tipi tulumlar, pamuktan yapılmış (örgü (triko) veya tığ işi (kroşe) olanlar ile endüstriyel veya mesleki kıyafetler hariç)"]
["14.13.35.61.00","Kadınlar veya kız çocukları için şortlar, pamuktan yapılmış (örgü (triko) veya tığ işi (kroşe) hariç)"]
["14.13.35.63.00","Kadınlar veya kız çocukları için bahçıvan tipi tulumlar, yün veya ince hayvan kılından ve insan yapımı elyaftan (örgü(triko) veya tığ işi (kroşe), pamuk, endüstriyel veya mesleki elbiseler hariç) ve yün veya ince hayvan kılından, kadın veya kız çocuk sortları (örme veya  tığ işi hariç)"]
["14.13.35.65.00","Kadınlar veya kız çocukları için şortlar, suni ve sentetik elyaftan yapılmış (örgü (triko) veya tığ işi (kroşe) hariç)"]
["14.13.35.69.00","Kadınlar veya kız çocukları için pantolon, binici/külot pantolonu (kısa pantolon dahil), bahçıvan tipi tulumlar, tekstilden yapılmış (pamuktan, yünden veya ince hayvan kılından, suni ve sentetik elyaftan, örgü veya tığ işi olanlar hariç)"]
["14.14.11.00.00","Erkekler veya erkek çocukları için gömlek, örgü (triko) veya tığ işi (kroşe) tekstilden"]
["14.14.12.20.01","Erkekler ve erkek çocukları için pamuktan külotlar ve slipler (boxer şortlar dahil), (örgü (triko) veya tığ işi (kroşe) olanlar)"]
["14.14.12.20.02","Erkekler ve erkek çocukları için sentetik ve suni liflerden ve dokumaya elverişli diğer maddelerden külotlar ve slipler (boxer şortlar dahil), (örgü (triko) veya tığ işi (kroşe) olanlar)"]
["14.14.12.30.00","Erkekler veya erkek çocukları için pijama ve gecelikler (örgü (triko) veya tığ işi (kroşe) tekstilden)"]
["14.14.12.40.00","Erkekler veya erkek çocukları için ropdöşambır, bornoz ve benzeri eşyalar (örgü (triko) veya tığ işi (kroşe) tekstilden)"]
["14.14.13.10.00","Kadınlar veya kız çocukları için bluz, gömlek ve gömlek bluzlar (örgü (triko) veya tığ işi (kroşe) tekstilden)"]
["14.14.14.20.00","Kadınlar veya kız çocukları için külot ve slipler (boxer şortlar dahil) (örgü (triko) veya tığ işi (kroşe) tekstilden)"]
["14.14.14.30.00","Kadınlar veya kız çocukları için gecelik ve pijamalar (örgü (triko) veya tığ işi (kroşe) tekstilden)"]
["14.14.14.40.00","Kadınlar veya kız çocukları için lizöz, bornoz, ropdöşambır, sabahlık ve benzeri eşyalar (örgü (triko) veya tığ işi (kroşe) tekstilden)"]
["14.14.14.50.00","Kadınlar veya kız çocukları için kombinezonlar, iç etekler ve jüponlar (örgü (triko) veya tığ işi (kroşe) tekstilden)"]
["14.14.21.00.01","Erkek/erkek çocuk için gömlek; yün/ince kıldan (örgü (triko) veya tığ işi (kroşe) olanlar hariç)"]
["14.14.21.00.02","Erkek/erkek çocuk için gömlek; pamuktan (örgü (triko) veya tığ işi (kroşe) olanlar hariç)"]
["14.14.21.00.03","Erkek/erkek çocuk için gömlek; sentetik/suni lifden (örgü (triko) veya tığ işi (kroşe) olanlar hariç)"]
["14.14.21.00.04","Erkek/erkek çocuk için gömlek; keten/ramiden (örgü (triko) veya tığ işi (kroşe) olanlar hariç)"]
["14.14.21.00.99","Erkek/erkek çocuk için gömlek; dokunabilir diğer maddelerden (örgü (triko) veya tığ işi (kroşe) olanlar hariç)"]
["14.14.22.20.00","Erkekler veya erkek çocukları için külot ve slipler (boxer şortlar dahil; örgü veya tığ işi hariç)"]
["14.14.22.30.00","Erkekler veya erkek çocukları için gecelik ve pijamalar (örgü (triko) veya tığ işi (kroşe) hariç)"]
["14.14.22.40.00","Erkekler veya erkek çocukları için atlet, fanila, bornoz, ropdöşambır ve benzeri eşyalar (örgü (triko) veya tığ işi (kroşe) hariç)"]
["14.14.23.00.00","Kadınlar veya kız çocukları için bluz, gömlek ve gömlek bluzlar (örgü (triko) veya tığ işi (kroşe) hariç)"]
["14.14.24.30.00","Kadınlar veya kız çocukları için gecelik veya pijamalar (örgü (triko) veya tığ işi (kroşe) hariç)"]
["14.14.24.50.00","Kadınlar veya kız çocukları için kombinezon, iç etek ve jüponlar (örgü (triko) veya tığ işi (kroşe) hariç)"]
["14.14.24.60.00","Kadınlar veya kız çocukları için atletler ve diğer fanilalar, slipler, külotlar, bornozlar, ropdöşambırlar, sabahlıklar ve benzeri eşyalar, pamuktan yapılmış (örgü (triko) veya tığ işi (kroşe) hariç)"]
["14.14.24.80.00","Kadınlar veya kız çocukları için lizöz, bornoz, ropdöşambır, atlet, fanila, slip ve külotlar (boxer şortlar dahil), suni elyaflardan (örgü (triko) veya tığ işi (kroşe) hariç)"]
["14.14.24.89.00","Kadınlar veya kız çocukları için lizöz, bornoz, ropdöşambır, atlet, fanila, slip ve külotlar, tekstilden yapılmış (pamuktan, suni ve sentetik elyaftan olanlar ile örgü (triko) veya tığ işi (kroşe) hariç)"]
["14.14.25.30.00","Sutyenler"]
["14.14.25.50.00","Korse, paçalı korseler ve sutyenli korseler (ayarlanabilir askılı badiler dahil)"]
["14.14.25.70.00","Pantolon askısı, çorap askısı, jartiyer ve benzer eşyalar ve bunların parçaları"]
["14.14.30.00.01","Tişört, fanila, atlet vs. giyim eşyası; pamuktan (örgü (triko) veya tığ işi (kroşe))"]
["14.14.30.00.02","Tişört, fanila, atlet vs. giyim eşyası; yün/ince hayvan kılından (örgü (triko) veya tığ işi (kroşe))"]
["14.14.30.00.03","Tişört, fanila, atlet vs. giyim eşyası; sentetik/suni lifden (örgü (triko) veya tığ işi (kroşe))"]
["14.14.30.00.99","Tişört, fanila, atlet vs. giyim eşyası; dokunabilir diğer maddelerden (örgü (triko) veya tığ işi (kroşe))"]
["14.19.11.00.00","Bebekler için fanila, tulum, külot, bebek bezi, parmaklı/parmaksız eldiven ve dış giyim dahil olmak üzere giysiler ve giysi aksesuarları (örgü (triko) veya tığ işi (kroşe)) (boyu ≤ 86 cm çocuklar için)"]
["14.19.12.10.00","Eşofmanlar (örgü (triko) veya tığ işi (kroşe) tekstilden)"]
["14.19.12.30.00","Kayak kıyafetleri (örgü (triko) veya tığ işi (kroşe) tekstilden)"]
["14.19.12.40.00","Erkekler veya erkek çocukları için mayolar (örgü (triko) veya tığ işi (kroşe) tekstilden)"]
["14.19.12.50.00","Kadınlar veya kız çocukları için mayolar (örgü (triko) veya tığ işi (kroşe) tekstilden)"]
["14.19.12.90.00","Diğer giysiler (uzun kollu badiler dahil) (örgü (triko) veya tığ işi (kroşe))"]
["14.19.13.00.00","Eldivenler, parmaksız ve tek parmaklı eldivenler (örgü (triko) veya tığ işi (kroşe))"]
["14.19.19.30.00","Şal, eşarp, atkı, başörtüsü, peçe ve benzerleri (örgü (triko) veya tığ işi (kroşe) tekstilden)"]
["14.19.19.60.00","Giysi aksesuarları ve bunların parçaları (örgü (triko) veya tığ işi (kroşe) tekstilden) (eldiven, parmaksız ve tek parmaklı eldivenler, şal, eşarp, atkı, kaşkol, başörtüsü ve peçeler hariç)"]
["14.19.21.50.00","Bebek elbiseleri ve giyim aksesuarları, tekstilden, fakat örgü (triko) veya tığ işi (kroşe) olanlar hariç (boyu 86 cm veya daha küçük çocuklar için), yelek, tulum, külot, esnek takımlar, eldiven, parmaksız ve tek parmaklı eldivenler ve dış giyim dahil (kadın pedleri, çocuk bezleri ve benzeri ürünler hariç)"]
["14.19.22.10.00","Erkekler veya erkek çocukları için başka yerde sınıflandırılmamış diğer giysiler (yelek, eşofman, koşu kıyafetleri ve spor tişört ve şortları dahil, kayak kıyafetleri ile örgü (triko) veya tığ işi (kroşe) olanlar hariç )"]
["14.19.22.20.00","Kadınlar veya kız çocukları için başka yerde sınıflandırılmamış diğer giysiler (yelek, eşofman, koşu kıyafetleri ve spor tişört ve şortları dahil, kayak kıyafetleri ile örgü (triko) veya tığ işi (kroşe) olanlar hariç)"]
["14.19.22.30.00","Kayak kıyafeti (örgü (triko) veya tığ işi (kroşe) olanlar hariç)"]
["14.19.22.40.00","Erkek veya erkek çocuğu mayoları (örgü (triko) veya tığ işi (kroşe) olanlar hariç)"]
["14.19.22.50.00","Kadın veya kız çocuğu mayoları (örgü (triko) veya tığ işi (kroşe) olanlar hariç)"]
["14.19.23.10.00","Mendiller"]
["14.19.23.33.00","Şal, eşarp, atkı, baş örtüsü, peçe ve benzerleri (ipek veya ipek döküntüsünden ve örgü (triko) veya tığ işi (kroşe) olanlar hariç)"]
["14.19.23.38.00","Şal, eşarp, atkı, baş örtüsü, peçe ve benzerleri, ipek veya ipek döküntüsünden yapılmış (örgü (triko) veya tığ işi olanlar (kroşe) hariç)"]
["14.19.23.53.00","Boyun bağı, papyon ve kravat (ipek veya ipek döküntüsünden ve örgü (triko) veya tığ işi (kroşe) olanlar hariç)"]
["14.19.23.58.00","Boyun bağı, papyon ve kravat, ipek veya ipek döküntüsünden yapılmış (örgü (triko) veya tığ işi (kroşe) olanlar hariç)"]
["14.19.23.70.00","Eldiven, parmaklı/parmaksız (örgü (triko) veya tığ işi (kroşe) olanlar hariç)"]
["14.19.23.96.00","Başka yerde sınıflandırılmamış giysi aksesuarları, giysilerin veya giyim aksesuarlarının parçaları, tekstilden yapılmış, bunların parçaları (örgü(triko) veya tığ işi(kroşe) olan şal, eşarp ve kaşkol, peçeler ve duvaklar, boyunbağı, papyon ve kravat, eldiven, parmaksız ve tek parmaklı eldivenler, bunların parçaları, sütyen, kuşak ve korse, pantalon askıları, jartiyer ve çorap askısı hariç)"]
["14.19.31.75.00","Eldivenler, parmaksız ve tek parmaklı eldivenler, deri veya deri bileşimlerinden yapılmış (spor eldivenleri ve tüm iş kolları için koruyucu eldivenler hariç)"]
["14.19.31.80.00","Kemer ve fişeklikler, deri veya deri bileşimlerinden yapılmış"]
["14.19.31.90.00","Giysi aksesuarları, deri veya deri bileşimlerinden yapılmış (eldiven, parmaksız ve tek parmaklı eldivenler ile kemer ve fişeklikler hariç)"]
["14.19.32.00.00","Giysiler (keçeden veya dokusuz kumaştan ya da emdirilmiş (emprenye edilmiş) veya kaplanmış tekstil kumaşından)"]
["14.19.41.30.00","Şapka kalıpları, şapka taslakları ve kapşonlar, tabla ve manşonlar (el kürkleri), keçeden (boyuna yarılmış olan manşonlar dahil) (şekil vermek için kalıplanmış olanlar ile hazır kenarlıklı (siperlikli) olanlar hariç)"]
["14.19.41.50.00","Şapka şekilleri, hasır vb. malzemeden örülerek veya herhangi bir malzemeden şeritler birleştirilerek yapılmış (şekil vermek için kalıplanmış olanlar, hazır kenarlıklı (siperlikli) olanlar, astarlı veya süslenmiş olanlar hariç)"]
["14.19.42.30.00","Şapkalar ve diğer başlıklar, keçeden (şapka taslakları veya kapşonlar ve tabladan yapılmış)"]
["14.19.42.50.00","Şapka ve diğer başlıklar (hasır vb. malzemeden örülerek veya herhangi bir malzemeden şeritler birleştirilerek yapılmış)"]
["14.19.42.70.00","Şapka ve diğer başlıklar (örgü (triko) veya tığ işi (kroşe) ya da dantelden yapılan, parçalar halindeki (şerit halinde olmayan) keçe veya diğer tekstil kumaşlarından yapılmış); saç fileleri, herhangi bir malzemeden"]
["14.19.43.00.00","Diğer başlıklar (kauçuk veya plastikten yapılmış başlıklar, güvenlik başlıkları ve asbest başlıklar hariç); bu şapkalara ilişkin şerit, astar, kılıf, şapka astarları, şapka çatısı, siperliği ve çenealtı kayışı"]
["14.31.10.33.00","Külotlu çoraplar ve tayt çoraplar, örgü (triko) veya tığ işi (kroşe) sentetik elyaftan yapılmış (tek kat iplik başına 67 desiteksten küçük olanlar)"]
["14.31.10.35.00","Külotlu çoraplar ve tayt çoraplar, örgü (triko) veya tığ işi (kroşe) sentetik elyaftan yapılmış (tek kat iplik başına 67 desiteksten büyük veya eşit olanlar)"]
["14.31.10.37.00","Külotlu çoraplar ve taytlar tekstil ürünlerinden, örgü (triko) veya tığ işi (kroşe) çoraplar, tekstilden yapılmış (sentetik fiberden belli oranda sıkıştırılarak yapılan ve bebekler için çoraplar hariç))"]
["14.31.10.50.00","Uzun veya diz altı kadın çorapları, örgü (triko) veya tığ işi (kroşe) sentetik elyaftan yapılmış (tek kat iplik başına 67 desiteksten küçük olanlar)"]
["14.31.10.90.01","Çorap, örgü (triko) veya tığ işi (kroşe) olanlar (yünden veya ince hayvan kıllarından) (tek katı < 67 desiteks olanlar ile uzun veya diz altı kadın çorapları, külotlu çorap, tayt çorap, tabanlı patikler hariç)"]
["14.31.10.90.02","Çorap, örgü (triko) veya tığ işi (kroşe) olanlar (pamuktan) (tek katı < 67 desiteks olanlar ile uzun veya diz altı kadın çorapları, külotlu çorap, tayt çorap, tabanlı patikler hariç)"]
["14.31.10.90.03","Çorap, örgü (triko) veya tığ işi (kroşe) olanlar (dereceli olarak baskı yapan sentetik ve diğer maddelerden varis çorapları) (tek katı < 67 desiteks olanlar ile uzun veya diz altı kadın çorapları, külotlu çorap, tayt çorap, tabanlı patikler hariç)"]
["14.31.10.90.04","Çorap, örgü (triko) veya tığ işi (kroşe) olanlar (sentetik liflerden diz altı çorapları) (varis çorapları ile tek katı < 67 desiteks olanlar ile uzun veya diz altı kadın çorapları, külotlu çorap, tayt çorap, tabanlı patikler hariç)"]
["14.31.10.90.05","Çorap, örgü (triko) veya tığ işi (kroşe) olanlar (sentetik liflerden kadın çorapları) (tek katı < 67 desiteks olanlar ile uzun veya diz altı kadın çorapları, külotlu çorap, tayt çorap, tabanlı patikler hariç)"]
["14.31.10.90.06","Çorap, örgü (triko) veya tığ işi (kroşe) olanlar (sentetik liflerden diğer çoraplar) (tek katı < 67 desiteks olanlar ile uzun veya diz altı kadın çorapları, külotlu çorap, tayt çorap, tabanlı patikler hariç)"]
["14.31.10.90.07","Diğer çoraplar, örgü (triko) veya tığ işi (kroşe) olanlar (dokunabilir diğer maddeden) (tek katı < 67 desiteks olanlar ile uzun veya diz altı kadın çorapları, külotlu çorap, tayt çorap, tabanlı patikler hariç)"]
["14.39.10.31.00","Erkekler veya erkek çocukları için kazak, süveter, sweatshirt (s-shirt), yelek ve hırka, yünden veya ince hayvan kılından yapılmış (yün içeriği % 50'ye eşit veya daha fazla ve ağırlık itibariyle 600 grama eşit veya daha fazla olan kazak ve süveterler hariç)"]
["14.39.10.32.00","Kadınlar veya kız çocukları için kazak, süveter, sweatshirt (s-shirt), yelek ve hırka, yünden veya ince hayvan kılından yapılmış (yün içeriği % 50'ye eşit veya daha fazla ve ağırlık itibariyle 600 grama eşit veya daha fazla olan kazak ve süveterler hariç)"]
["14.39.10.33.00","Kazak ve süveterler, ağırlığına göre yün içeriği ≥ % 50 ve parça başına ağırlığı ≥ 600 gr olanlar"]
["14.39.10.53.00","Kazak ve süveterler, pamuktan yapılmış (hafif ince örgüden sıfır, polo veya balıkçı yaka olanlar)"]
["14.39.10.55.00","Kazak ve süveterler, suni ve sentetik elyaftan yapılmış (hafif ince örgüden sıfır, polo veya balıkçı yaka olanlar)"]
["14.39.10.61.01","Erkek/erkek çocuk için hırka, pamuktan, örgü (triko) veya tığ işi (kroşe) olanlar (hafif ince örgüden sıfır, polo veya balıkçı yaka kazak ve süveter hariç)"]
["14.39.10.61.02","Erkek/erkek çocuk için yelek, pamuktan, örgü (triko) veya tığ işi (kroşe) olanlar (hafif ince örgüden sıfır, polo veya balıkçı yaka kazak ve süveter hariç)"]
["14.39.10.61.03","Erkek/erkek çocuk için hırka/yelek benzeri eşya, pamuktan, örgü (triko) veya tığ işi (kroşe) olanlar (hafif ince örgüden sıfır, polo veya balıkçı yaka kazak ve süveter hariç)"]
["14.39.10.62.01","Kadın/kız çocuk için hırka, pamuktan, örgü (triko) veya tığ işi (kroşe) olanlar (hafif ince örgüden sıfır, polo veya balıkçı yaka kazak ve süveter hariç)"]
["14.39.10.62.02","Kadın/kız çocuk için süveter, pamuktan, örgü (triko) veya tığ işi (kroşe) olanlar (hafif ince örgüden sıfır, polo veya balıkçı yaka kazak ve süveter hariç)"]
["14.39.10.62.03","Kadın/kız çocuk için hırka/süveter benzeri eşya, pamuktan, örgü (triko) veya tığ işi (kroşe) olanlar (hafif ince örgüden sıfır, polo veya balıkçı yaka kazak ve süveter hariç)"]
["14.39.10.71.00","Erkekler veya erkek çocukları için kazak, sweatshirt (s-shirt), süveter, yelek ve hırka, suni ve sentetik elyaftan yapılmış (hafif ince örgüden sıfır, polo veya balıkçı yaka kazak ve süveter hariç)"]
["14.39.10.72.00","Kadınlar veya kız çocukları için kazak, sweatshirt (s-shirt), süveter, yelek ve hırka, suni ve sentetik elyaftan yapılmış (hafif ince örgüden sıfır, polo veya balıkçı yaka kazak ve süveter hariç)"]
["14.39.10.90.00","Kazak, sweatshirt (s-shirt), süveter, yelek ve hırkalar, tekstil malzemelerinden yapılmış (yün, ince hayvan kılı, pamuk, suni ve sentetik elyaftan yapılanlar hariç)"]